{"text_format":"3","workbook":"xlsx","n_sheets":2,"sheets":["جدول الفصل الدراسي","قائمة الصفوف"],"not_rendered":{"defined_names":17},"read":"whole","date_system":"1900"}

{"sheet":"جدول الفصل الدراسي","index":0,"n_rows":56,"n_cols":9,"rows_kept":56,"merged":[[0,1,1,5],[0,8,1,8]]}
[null,"جدول الفصل الدراسي",{"$nulls":4},"بداية الجدول","الفاصل الزمني","قائمة الصفوف"]
[{"$nulls":6},"08:00:00","15 دقيقة"]
[null,"الوقت","الأحد","الاثنين","الثلاثاء","الأربعاء","الخميس","الجمعة","السبت"]
[null,{"$f":"بداية_الجدول","v":"08:00:00"},{"$f":"IFERROR(INDEX(قائمة_الصفوف[],MATCH(SUMPRODUCT((قائمة_الصفوف[اليوم]=جدول_الفصل_الدراسي[[#Headers],[الأحد]])*(ROUNDDOWN($B4,10)>=ROUNDDOWN(قائمة_الصفوف[وقت البدء],10))*($B4<=قائمة_الصفوف[وقت الانتهاء]),قائمة_الصفوف[فريدة]),قائمة_الصفوف[فريدة],0),2),0)","v":0},{"$f":"IFERROR(INDEX(قائمة_الصفوف[],MATCH(SUMPRODUCT((قائمة_الصفوف[اليوم]=جدول_الفصل_الدراسي[[#Headers],[الاثنين]])*(ROUNDDOWN($B4,10)>=ROUNDDOWN(قائمة_الصفوف[وقت البدء],10))*($B4<=قائمة_الصفوف[وقت الانتهاء]),قائمة_الصفوف[فريدة]),قائمة_الصفوف[فريدة],0),2),0)","v":0},{"$f":"IFERROR(INDEX(قائمة_الصفوف[],MATCH(SUMPRODUCT((قائمة_الصفوف[اليوم]=جدول_الفصل_الدراسي[[#Headers],[الثلاثاء]])*(ROUNDDOWN($B4,10)>=ROUNDDOWN(قائمة_الصفوف[وقت البدء],10))*($B4<=قائمة_الصفوف[وقت الانتهاء]),قائمة_الصفوف[فريدة]),قائمة_الصفوف[فريدة],0),2),0)","v":0},{"$f":"IFERROR(INDEX(قائمة_الصفوف[],MATCH(SUMPRODUCT((قائمة_الصفوف[اليوم]=جدول_الفصل_الدراسي[[#Headers],[الأربعاء]])*(ROUNDDOWN($B4,10)>=ROUNDDOWN(قائمة_الصفوف[وقت البدء],10))*($B4<=قائمة_الصفوف[وقت الانتهاء]),قائمة_الصفوف[فريدة]),قائمة_الصفوف[فريدة],0),2),0)","v":0},{"$f":"IFERROR(INDEX(قائمة_الصفوف[],MATCH(SUMPRODUCT((قائمة_الصفوف[اليوم]=جدول_الفصل_الدراسي[[#Headers],[الخميس]])*(ROUNDDOWN($B4,10)>=ROUNDDOWN(قائمة_الصفوف[وقت البدء],10))*($B4<=قائمة_الصفوف[وقت الانتهاء]),قائمة_الصفوف[فريدة]),قائمة_الصفوف[فريدة],0),2),0)","v":0},{"$f":"IFERROR(INDEX(قائمة_الصفوف[],MATCH(SUMPRODUCT((قائمة_الصفوف[اليوم]=جدول_الفصل_الدراسي[[#Headers],[الجمعة]])*(ROUNDDOWN($B4,10)>=ROUNDDOWN(قائمة_الصفوف[وقت البدء],10))*($B4<=قائمة_الصفوف[وقت الانتهاء]),قائمة_الصفوف[فريدة]),قائمة_الصفوف[فريدة],0),2),0)","v":0},{"$f":"IFERROR(INDEX(قائمة_الصفوف[],MATCH(SUMPRODUCT((قائمة_الصفوف[اليوم]=جدول_الفصل_الدراسي[[#Headers],[السبت]])*(ROUNDDOWN($B4,10)>=ROUNDDOWN(قائمة_الصفوف[وقت البدء],10))*($B4<=قائمة_الصفوف[وقت الانتهاء]),قائمة_الصفوف[فريدة]),قائمة_الصفوف[فريدة],0),2),0)","v":0}]
[null,{"$f":"B4+الزيادة","v":"08:15:00"},{"$f":"IFERROR(INDEX(قائمة_الصفوف[],MATCH(SUMPRODUCT((قائمة_الصفوف[اليوم]=جدول_الفصل_الدراسي[[#Headers],[الأحد]])*(ROUNDDOWN($B5,10)>=ROUNDDOWN(قائمة_الصفوف[وقت البدء],10))*($B5<=قائمة_الصفوف[وقت الانتهاء]),قائمة_الصفوف[فريدة]),قائمة_الصفوف[فريدة],0),2),0)","v":0},{"$f":"IFERROR(INDEX(قائمة_الصفوف[],MATCH(SUMPRODUCT((قائمة_الصفوف[اليوم]=جدول_الفصل_الدراسي[[#Headers],[الاثنين]])*(ROUNDDOWN($B5,10)>=ROUNDDOWN(قائمة_الصفوف[وقت البدء],10))*($B5<=قائمة_الصفوف[وقت الانتهاء]),قائمة_الصفوف[فريدة]),قائمة_الصفوف[فريدة],0),2),0)","v":"رياضيات-113"},{"$f":"IFERROR(INDEX(قائمة_الصفوف[],MATCH(SUMPRODUCT((قائمة_الصفوف[اليوم]=جدول_الفصل_الدراسي[[#Headers],[الثلاثاء]])*(ROUNDDOWN($B5,10)>=ROUNDDOWN(قائمة_الصفوف[وقت البدء],10))*($B5<=قائمة_الصفوف[وقت الانتهاء]),قائمة_الصفوف[فريدة]),قائمة_الصفوف[فريدة],0),2),0)","v":0},{"$f":"IFERROR(INDEX(قائمة_الصفوف[],MATCH(SUMPRODUCT((قائمة_الصفوف[اليوم]=جدول_الفصل_الدراسي[[#Headers],[الأربعاء]])*(ROUNDDOWN($B5,10)>=ROUNDDOWN(قائمة_الصفوف[وقت البدء],10))*($B5<=قائمة_الصفوف[وقت الانتهاء]),قائمة_الصفوف[فريدة]),قائمة_الصفوف[فريدة],0),2),0)","v":"رياضيات-113"},{"$f":"IFERROR(INDEX(قائمة_الصفوف[],MATCH(SUMPRODUCT((قائمة_الصفوف[اليوم]=جدول_الفصل_الدراسي[[#Headers],[الخميس]])*(ROUNDDOWN($B5,10)>=ROUNDDOWN(قائمة_الصفوف[وقت البدء],10))*($B5<=قائمة_الصفوف[وقت الانتهاء]),قائمة_الصفوف[فريدة]),قائمة_الصفوف[فريدة],0),2),0)","v":0},{"$f":"IFERROR(INDEX(قائمة_الصفوف[],MATCH(SUMPRODUCT((قائمة_الصفوف[اليوم]=جدول_الفصل_الدراسي[[#Headers],[الجمعة]])*(ROUNDDOWN($B5,10)>=ROUNDDOWN(قائمة_الصفوف[وقت البدء],10))*($B5<=قائمة_الصفوف[وقت الانتهاء]),قائمة_الصفوف[فريدة]),قائمة_الصفوف[فريدة],0),2),0)","v":"رياضيات-113"},{"$f":"IFERROR(INDEX(قائمة_الصفوف[],MATCH(SUMPRODUCT((قائمة_الصفوف[اليوم]=جدول_الفصل_الدراسي[[#Headers],[السبت]])*(ROUNDDOWN($B5,10)>=ROUNDDOWN(قائمة_الصفوف[وقت البدء],10))*($B5<=قائمة_الصفوف[وقت الانتهاء]),قائمة_الصفوف[فريدة]),قائمة_الصفوف[فريدة],0),2),0)","v":0}]
[null,"08:30:00",{"$f":"IFERROR(INDEX(قائمة_الصفوف[],MATCH(SUMPRODUCT((قائمة_الصفوف[اليوم]=جدول_الفصل_الدراسي[[#Headers],[الأحد]])*(ROUNDDOWN($B6,10)>=ROUNDDOWN(قائمة_الصفوف[وقت البدء],10))*($B6<=قائمة_الصفوف[وقت الانتهاء]),قائمة_الصفوف[فريدة]),قائمة_الصفوف[فريدة],0),2),0)","v":0},{"$f":"IFERROR(INDEX(قائمة_الصفوف[],MATCH(SUMPRODUCT((قائمة_الصفوف[اليوم]=جدول_الفصل_الدراسي[[#Headers],[الاثنين]])*(ROUNDDOWN($B6,10)>=ROUNDDOWN(قائمة_الصفوف[وقت البدء],10))*($B6<=قائمة_الصفوف[وقت الانتهاء]),قائمة_الصفوف[فريدة]),قائمة_الصفوف[فريدة],0),2),0)","v":"رياضيات-113"},{"$f":"IFERROR(INDEX(قائمة_الصفوف[],MATCH(SUMPRODUCT((قائمة_الصفوف[اليوم]=جدول_الفصل_الدراسي[[#Headers],[الثلاثاء]])*(ROUNDDOWN($B6,10)>=ROUNDDOWN(قائمة_الصفوف[وقت البدء],10))*($B6<=قائمة_الصفوف[وقت الانتهاء]),قائمة_الصفوف[فريدة]),قائمة_الصفوف[فريدة],0),2),0)","v":0},{"$f":"IFERROR(INDEX(قائمة_الصفوف[],MATCH(SUMPRODUCT((قائمة_الصفوف[اليوم]=جدول_الفصل_الدراسي[[#Headers],[الأربعاء]])*(ROUNDDOWN($B6,10)>=ROUNDDOWN(قائمة_الصفوف[وقت البدء],10))*($B6<=قائمة_الصفوف[وقت الانتهاء]),قائمة_الصفوف[فريدة]),قائمة_الصفوف[فريدة],0),2),0)","v":"رياضيات-113"},{"$f":"IFERROR(INDEX(قائمة_الصفوف[],MATCH(SUMPRODUCT((قائمة_الصفوف[اليوم]=جدول_الفصل_الدراسي[[#Headers],[الخميس]])*(ROUNDDOWN($B6,10)>=ROUNDDOWN(قائمة_الصفوف[وقت البدء],10))*($B6<=قائمة_الصفوف[وقت الانتهاء]),قائمة_الصفوف[فريدة]),قائمة_الصفوف[فريدة],0),2),0)","v":0},{"$f":"IFERROR(INDEX(قائمة_الصفوف[],MATCH(SUMPRODUCT((قائمة_الصفوف[اليوم]=جدول_الفصل_الدراسي[[#Headers],[الجمعة]])*(ROUNDDOWN($B6,10)>=ROUNDDOWN(قائمة_الصفوف[وقت البدء],10))*($B6<=قائمة_الصفوف[وقت الانتهاء]),قائمة_الصفوف[فريدة]),قائمة_الصفوف[فريدة],0),2),0)","v":"رياضيات-113"},{"$f":"IFERROR(INDEX(قائمة_الصفوف[],MATCH(SUMPRODUCT((قائمة_الصفوف[اليوم]=جدول_الفصل_الدراسي[[#Headers],[السبت]])*(ROUNDDOWN($B6,10)>=ROUNDDOWN(قائمة_الصفوف[وقت البدء],10))*($B6<=قائمة_الصفوف[وقت الانتهاء]),قائمة_الصفوف[فريدة]),قائمة_الصفوف[فريدة],0),2),0)","v":0}]
[null,"08:45:00",{"$f":"IFERROR(INDEX(قائمة_الصفوف[],MATCH(SUMPRODUCT((قائمة_الصفوف[اليوم]=جدول_الفصل_الدراسي[[#Headers],[الأحد]])*(ROUNDDOWN($B7,10)>=ROUNDDOWN(قائمة_الصفوف[وقت البدء],10))*($B7<=قائمة_الصفوف[وقت الانتهاء]),قائمة_الصفوف[فريدة]),قائمة_الصفوف[فريدة],0),2),0)","v":0},{"$f":"IFERROR(INDEX(قائمة_الصفوف[],MATCH(SUMPRODUCT((قائمة_الصفوف[اليوم]=جدول_الفصل_الدراسي[[#Headers],[الاثنين]])*(ROUNDDOWN($B7,10)>=ROUNDDOWN(قائمة_الصفوف[وقت البدء],10))*($B7<=قائمة_الصفوف[وقت الانتهاء]),قائمة_الصفوف[فريدة]),قائمة_الصفوف[فريدة],0),2),0)","v":"رياضيات-113"},{"$f":"IFERROR(INDEX(قائمة_الصفوف[],MATCH(SUMPRODUCT((قائمة_الصفوف[اليوم]=جدول_الفصل_الدراسي[[#Headers],[الثلاثاء]])*(ROUNDDOWN($B7,10)>=ROUNDDOWN(قائمة_الصفوف[وقت البدء],10))*($B7<=قائمة_الصفوف[وقت الانتهاء]),قائمة_الصفوف[فريدة]),قائمة_الصفوف[فريدة],0),2),0)","v":0},{"$f":"IFERROR(INDEX(قائمة_الصفوف[],MATCH(SUMPRODUCT((قائمة_الصفوف[اليوم]=جدول_الفصل_الدراسي[[#Headers],[الأربعاء]])*(ROUNDDOWN($B7,10)>=ROUNDDOWN(قائمة_الصفوف[وقت البدء],10))*($B7<=قائمة_الصفوف[وقت الانتهاء]),قائمة_الصفوف[فريدة]),قائمة_الصفوف[فريدة],0),2),0)","v":"رياضيات-113"},{"$f":"IFERROR(INDEX(قائمة_الصفوف[],MATCH(SUMPRODUCT((قائمة_الصفوف[اليوم]=جدول_الفصل_الدراسي[[#Headers],[الخميس]])*(ROUNDDOWN($B7,10)>=ROUNDDOWN(قائمة_الصفوف[وقت البدء],10))*($B7<=قائمة_الصفوف[وقت الانتهاء]),قائمة_الصفوف[فريدة]),قائمة_الصفوف[فريدة],0),2),0)","v":0},{"$f":"IFERROR(INDEX(قائمة_الصفوف[],MATCH(SUMPRODUCT((قائمة_الصفوف[اليوم]=جدول_الفصل_الدراسي[[#Headers],[الجمعة]])*(ROUNDDOWN($B7,10)>=ROUNDDOWN(قائمة_الصفوف[وقت البدء],10))*($B7<=قائمة_الصفوف[وقت الانتهاء]),قائمة_الصفوف[فريدة]),قائمة_الصفوف[فريدة],0),2),0)","v":"رياضيات-113"},{"$f":"IFERROR(INDEX(قائمة_الصفوف[],MATCH(SUMPRODUCT((قائمة_الصفوف[اليوم]=جدول_الفصل_الدراسي[[#Headers],[السبت]])*(ROUNDDOWN($B7,10)>=ROUNDDOWN(قائمة_الصفوف[وقت البدء],10))*($B7<=قائمة_الصفوف[وقت الانتهاء]),قائمة_الصفوف[فريدة]),قائمة_الصفوف[فريدة],0),2),0)","v":0}]
[null,"09:00:00",{"$f":"IFERROR(INDEX(قائمة_الصفوف[],MATCH(SUMPRODUCT((قائمة_الصفوف[اليوم]=جدول_الفصل_الدراسي[[#Headers],[الأحد]])*(ROUNDDOWN($B8,10)>=ROUNDDOWN(قائمة_الصفوف[وقت البدء],10))*($B8<=قائمة_الصفوف[وقت الانتهاء]),قائمة_الصفوف[فريدة]),قائمة_الصفوف[فريدة],0),2),0)","v":0},{"$f":"IFERROR(INDEX(قائمة_الصفوف[],MATCH(SUMPRODUCT((قائمة_الصفوف[اليوم]=جدول_الفصل_الدراسي[[#Headers],[الاثنين]])*(ROUNDDOWN($B8,10)>=ROUNDDOWN(قائمة_الصفوف[وقت البدء],10))*($B8<=قائمة_الصفوف[وقت الانتهاء]),قائمة_الصفوف[فريدة]),قائمة_الصفوف[فريدة],0),2),0)","v":"رياضيات-113"},{"$f":"IFERROR(INDEX(قائمة_الصفوف[],MATCH(SUMPRODUCT((قائمة_الصفوف[اليوم]=جدول_الفصل_الدراسي[[#Headers],[الثلاثاء]])*(ROUNDDOWN($B8,10)>=ROUNDDOWN(قائمة_الصفوف[وقت البدء],10))*($B8<=قائمة_الصفوف[وقت الانتهاء]),قائمة_الصفوف[فريدة]),قائمة_الصفوف[فريدة],0),2),0)","v":0},{"$f":"IFERROR(INDEX(قائمة_الصفوف[],MATCH(SUMPRODUCT((قائمة_الصفوف[اليوم]=جدول_الفصل_الدراسي[[#Headers],[الأربعاء]])*(ROUNDDOWN($B8,10)>=ROUNDDOWN(قائمة_الصفوف[وقت البدء],10))*($B8<=قائمة_الصفوف[وقت الانتهاء]),قائمة_الصفوف[فريدة]),قائمة_الصفوف[فريدة],0),2),0)","v":"رياضيات-113"},{"$f":"IFERROR(INDEX(قائمة_الصفوف[],MATCH(SUMPRODUCT((قائمة_الصفوف[اليوم]=جدول_الفصل_الدراسي[[#Headers],[الخميس]])*(ROUNDDOWN($B8,10)>=ROUNDDOWN(قائمة_الصفوف[وقت البدء],10))*($B8<=قائمة_الصفوف[وقت الانتهاء]),قائمة_الصفوف[فريدة]),قائمة_الصفوف[فريدة],0),2),0)","v":0},{"$f":"IFERROR(INDEX(قائمة_الصفوف[],MATCH(SUMPRODUCT((قائمة_الصفوف[اليوم]=جدول_الفصل_الدراسي[[#Headers],[الجمعة]])*(ROUNDDOWN($B8,10)>=ROUNDDOWN(قائمة_الصفوف[وقت البدء],10))*($B8<=قائمة_الصفوف[وقت الانتهاء]),قائمة_الصفوف[فريدة]),قائمة_الصفوف[فريدة],0),2),0)","v":"رياضيات-113"},{"$f":"IFERROR(INDEX(قائمة_الصفوف[],MATCH(SUMPRODUCT((قائمة_الصفوف[اليوم]=جدول_الفصل_الدراسي[[#Headers],[السبت]])*(ROUNDDOWN($B8,10)>=ROUNDDOWN(قائمة_الصفوف[وقت البدء],10))*($B8<=قائمة_الصفوف[وقت الانتهاء]),قائمة_الصفوف[فريدة]),قائمة_الصفوف[فريدة],0),2),0)","v":0}]
[null,"09:15:00",{"$f":"IFERROR(INDEX(قائمة_الصفوف[],MATCH(SUMPRODUCT((قائمة_الصفوف[اليوم]=جدول_الفصل_الدراسي[[#Headers],[الأحد]])*(ROUNDDOWN($B9,10)>=ROUNDDOWN(قائمة_الصفوف[وقت البدء],10))*($B9<=قائمة_الصفوف[وقت الانتهاء]),قائمة_الصفوف[فريدة]),قائمة_الصفوف[فريدة],0),2),0)","v":0},{"$f":"IFERROR(INDEX(قائمة_الصفوف[],MATCH(SUMPRODUCT((قائمة_الصفوف[اليوم]=جدول_الفصل_الدراسي[[#Headers],[الاثنين]])*(ROUNDDOWN($B9,10)>=ROUNDDOWN(قائمة_الصفوف[وقت البدء],10))*($B9<=قائمة_الصفوف[وقت الانتهاء]),قائمة_الصفوف[فريدة]),قائمة_الصفوف[فريدة],0),2),0)","v":"رياضيات-113"},{"$f":"IFERROR(INDEX(قائمة_الصفوف[],MATCH(SUMPRODUCT((قائمة_الصفوف[اليوم]=جدول_الفصل_الدراسي[[#Headers],[الثلاثاء]])*(ROUNDDOWN($B9,10)>=ROUNDDOWN(قائمة_الصفوف[وقت البدء],10))*($B9<=قائمة_الصفوف[وقت الانتهاء]),قائمة_الصفوف[فريدة]),قائمة_الصفوف[فريدة],0),2),0)","v":0},{"$f":"IFERROR(INDEX(قائمة_الصفوف[],MATCH(SUMPRODUCT((قائمة_الصفوف[اليوم]=جدول_الفصل_الدراسي[[#Headers],[الأربعاء]])*(ROUNDDOWN($B9,10)>=ROUNDDOWN(قائمة_الصفوف[وقت البدء],10))*($B9<=قائمة_الصفوف[وقت الانتهاء]),قائمة_الصفوف[فريدة]),قائمة_الصفوف[فريدة],0),2),0)","v":"رياضيات-113"},{"$f":"IFERROR(INDEX(قائمة_الصفوف[],MATCH(SUMPRODUCT((قائمة_الصفوف[اليوم]=جدول_الفصل_الدراسي[[#Headers],[الخميس]])*(ROUNDDOWN($B9,10)>=ROUNDDOWN(قائمة_الصفوف[وقت البدء],10))*($B9<=قائمة_الصفوف[وقت الانتهاء]),قائمة_الصفوف[فريدة]),قائمة_الصفوف[فريدة],0),2),0)","v":0},{"$f":"IFERROR(INDEX(قائمة_الصفوف[],MATCH(SUMPRODUCT((قائمة_الصفوف[اليوم]=جدول_الفصل_الدراسي[[#Headers],[الجمعة]])*(ROUNDDOWN($B9,10)>=ROUNDDOWN(قائمة_الصفوف[وقت البدء],10))*($B9<=قائمة_الصفوف[وقت الانتهاء]),قائمة_الصفوف[فريدة]),قائمة_الصفوف[فريدة],0),2),0)","v":"رياضيات-113"},{"$f":"IFERROR(INDEX(قائمة_الصفوف[],MATCH(SUMPRODUCT((قائمة_الصفوف[اليوم]=جدول_الفصل_الدراسي[[#Headers],[السبت]])*(ROUNDDOWN($B9,10)>=ROUNDDOWN(قائمة_الصفوف[وقت البدء],10))*($B9<=قائمة_الصفوف[وقت الانتهاء]),قائمة_الصفوف[فريدة]),قائمة_الصفوف[فريدة],0),2),0)","v":0}]
[null,"09:30:00",{"$f":"IFERROR(INDEX(قائمة_الصفوف[],MATCH(SUMPRODUCT((قائمة_الصفوف[اليوم]=جدول_الفصل_الدراسي[[#Headers],[الأحد]])*(ROUNDDOWN($B10,10)>=ROUNDDOWN(قائمة_الصفوف[وقت البدء],10))*($B10<=قائمة_الصفوف[وقت الانتهاء]),قائمة_الصفوف[فريدة]),قائمة_الصفوف[فريدة],0),2),0)","v":0},{"$f":"IFERROR(INDEX(قائمة_الصفوف[],MATCH(SUMPRODUCT((قائمة_الصفوف[اليوم]=جدول_الفصل_الدراسي[[#Headers],[الاثنين]])*(ROUNDDOWN($B10,10)>=ROUNDDOWN(قائمة_الصفوف[وقت البدء],10))*($B10<=قائمة_الصفوف[وقت الانتهاء]),قائمة_الصفوف[فريدة]),قائمة_الصفوف[فريدة],0),2),0)","v":0},{"$f":"IFERROR(INDEX(قائمة_الصفوف[],MATCH(SUMPRODUCT((قائمة_الصفوف[اليوم]=جدول_الفصل_الدراسي[[#Headers],[الثلاثاء]])*(ROUNDDOWN($B10,10)>=ROUNDDOWN(قائمة_الصفوف[وقت البدء],10))*($B10<=قائمة_الصفوف[وقت الانتهاء]),قائمة_الصفوف[فريدة]),قائمة_الصفوف[فريدة],0),2),0)","v":0},{"$f":"IFERROR(INDEX(قائمة_الصفوف[],MATCH(SUMPRODUCT((قائمة_الصفوف[اليوم]=جدول_الفصل_الدراسي[[#Headers],[الأربعاء]])*(ROUNDDOWN($B10,10)>=ROUNDDOWN(قائمة_الصفوف[وقت البدء],10))*($B10<=قائمة_الصفوف[وقت الانتهاء]),قائمة_الصفوف[فريدة]),قائمة_الصفوف[فريدة],0),2),0)","v":0},{"$f":"IFERROR(INDEX(قائمة_الصفوف[],MATCH(SUMPRODUCT((قائمة_الصفوف[اليوم]=جدول_الفصل_الدراسي[[#Headers],[الخميس]])*(ROUNDDOWN($B10,10)>=ROUNDDOWN(قائمة_الصفوف[وقت البدء],10))*($B10<=قائمة_الصفوف[وقت الانتهاء]),قائمة_الصفوف[فريدة]),قائمة_الصفوف[فريدة],0),2),0)","v":0},{"$f":"IFERROR(INDEX(قائمة_الصفوف[],MATCH(SUMPRODUCT((قائمة_الصفوف[اليوم]=جدول_الفصل_الدراسي[[#Headers],[الجمعة]])*(ROUNDDOWN($B10,10)>=ROUNDDOWN(قائمة_الصفوف[وقت البدء],10))*($B10<=قائمة_الصفوف[وقت الانتهاء]),قائمة_الصفوف[فريدة]),قائمة_الصفوف[فريدة],0),2),0)","v":0},{"$f":"IFERROR(INDEX(قائمة_الصفوف[],MATCH(SUMPRODUCT((قائمة_الصفوف[اليوم]=جدول_الفصل_الدراسي[[#Headers],[السبت]])*(ROUNDDOWN($B10,10)>=ROUNDDOWN(قائمة_الصفوف[وقت البدء],10))*($B10<=قائمة_الصفوف[وقت الانتهاء]),قائمة_الصفوف[فريدة]),قائمة_الصفوف[فريدة],0),2),0)","v":0}]
[null,"09:45:00",{"$f":"IFERROR(INDEX(قائمة_الصفوف[],MATCH(SUMPRODUCT((قائمة_الصفوف[اليوم]=جدول_الفصل_الدراسي[[#Headers],[الأحد]])*(ROUNDDOWN($B11,10)>=ROUNDDOWN(قائمة_الصفوف[وقت البدء],10))*($B11<=قائمة_الصفوف[وقت الانتهاء]),قائمة_الصفوف[فريدة]),قائمة_الصفوف[فريدة],0),2),0)","v":0},{"$f":"IFERROR(INDEX(قائمة_الصفوف[],MATCH(SUMPRODUCT((قائمة_الصفوف[اليوم]=جدول_الفصل_الدراسي[[#Headers],[الاثنين]])*(ROUNDDOWN($B11,10)>=ROUNDDOWN(قائمة_الصفوف[وقت البدء],10))*($B11<=قائمة_الصفوف[وقت الانتهاء]),قائمة_الصفوف[فريدة]),قائمة_الصفوف[فريدة],0),2),0)","v":0},{"$f":"IFERROR(INDEX(قائمة_الصفوف[],MATCH(SUMPRODUCT((قائمة_الصفوف[اليوم]=جدول_الفصل_الدراسي[[#Headers],[الثلاثاء]])*(ROUNDDOWN($B11,10)>=ROUNDDOWN(قائمة_الصفوف[وقت البدء],10))*($B11<=قائمة_الصفوف[وقت الانتهاء]),قائمة_الصفوف[فريدة]),قائمة_الصفوف[فريدة],0),2),0)","v":0},{"$f":"IFERROR(INDEX(قائمة_الصفوف[],MATCH(SUMPRODUCT((قائمة_الصفوف[اليوم]=جدول_الفصل_الدراسي[[#Headers],[الأربعاء]])*(ROUNDDOWN($B11,10)>=ROUNDDOWN(قائمة_الصفوف[وقت البدء],10))*($B11<=قائمة_الصفوف[وقت الانتهاء]),قائمة_الصفوف[فريدة]),قائمة_الصفوف[فريدة],0),2),0)","v":0},{"$f":"IFERROR(INDEX(قائمة_الصفوف[],MATCH(SUMPRODUCT((قائمة_الصفوف[اليوم]=جدول_الفصل_الدراسي[[#Headers],[الخميس]])*(ROUNDDOWN($B11,10)>=ROUNDDOWN(قائمة_الصفوف[وقت البدء],10))*($B11<=قائمة_الصفوف[وقت الانتهاء]),قائمة_الصفوف[فريدة]),قائمة_الصفوف[فريدة],0),2),0)","v":0},{"$f":"IFERROR(INDEX(قائمة_الصفوف[],MATCH(SUMPRODUCT((قائمة_الصفوف[اليوم]=جدول_الفصل_الدراسي[[#Headers],[الجمعة]])*(ROUNDDOWN($B11,10)>=ROUNDDOWN(قائمة_الصفوف[وقت البدء],10))*($B11<=قائمة_الصفوف[وقت الانتهاء]),قائمة_الصفوف[فريدة]),قائمة_الصفوف[فريدة],0),2),0)","v":0},{"$f":"IFERROR(INDEX(قائمة_الصفوف[],MATCH(SUMPRODUCT((قائمة_الصفوف[اليوم]=جدول_الفصل_الدراسي[[#Headers],[السبت]])*(ROUNDDOWN($B11,10)>=ROUNDDOWN(قائمة_الصفوف[وقت البدء],10))*($B11<=قائمة_الصفوف[وقت الانتهاء]),قائمة_الصفوف[فريدة]),قائمة_الصفوف[فريدة],0),2),0)","v":0}]
[null,"10:00:00",{"$f":"IFERROR(INDEX(قائمة_الصفوف[],MATCH(SUMPRODUCT((قائمة_الصفوف[اليوم]=جدول_الفصل_الدراسي[[#Headers],[الأحد]])*(ROUNDDOWN($B12,10)>=ROUNDDOWN(قائمة_الصفوف[وقت البدء],10))*($B12<=قائمة_الصفوف[وقت الانتهاء]),قائمة_الصفوف[فريدة]),قائمة_الصفوف[فريدة],0),2),0)","v":0},{"$f":"IFERROR(INDEX(قائمة_الصفوف[],MATCH(SUMPRODUCT((قائمة_الصفوف[اليوم]=جدول_الفصل_الدراسي[[#Headers],[الاثنين]])*(ROUNDDOWN($B12,10)>=ROUNDDOWN(قائمة_الصفوف[وقت البدء],10))*($B12<=قائمة_الصفوف[وقت الانتهاء]),قائمة_الصفوف[فريدة]),قائمة_الصفوف[فريدة],0),2),0)","v":0},{"$f":"IFERROR(INDEX(قائمة_الصفوف[],MATCH(SUMPRODUCT((قائمة_الصفوف[اليوم]=جدول_الفصل_الدراسي[[#Headers],[الثلاثاء]])*(ROUNDDOWN($B12,10)>=ROUNDDOWN(قائمة_الصفوف[وقت البدء],10))*($B12<=قائمة_الصفوف[وقت الانتهاء]),قائمة_الصفوف[فريدة]),قائمة_الصفوف[فريدة],0),2),0)","v":0},{"$f":"IFERROR(INDEX(قائمة_الصفوف[],MATCH(SUMPRODUCT((قائمة_الصفوف[اليوم]=جدول_الفصل_الدراسي[[#Headers],[الأربعاء]])*(ROUNDDOWN($B12,10)>=ROUNDDOWN(قائمة_الصفوف[وقت البدء],10))*($B12<=قائمة_الصفوف[وقت الانتهاء]),قائمة_الصفوف[فريدة]),قائمة_الصفوف[فريدة],0),2),0)","v":0},{"$f":"IFERROR(INDEX(قائمة_الصفوف[],MATCH(SUMPRODUCT((قائمة_الصفوف[اليوم]=جدول_الفصل_الدراسي[[#Headers],[الخميس]])*(ROUNDDOWN($B12,10)>=ROUNDDOWN(قائمة_الصفوف[وقت البدء],10))*($B12<=قائمة_الصفوف[وقت الانتهاء]),قائمة_الصفوف[فريدة]),قائمة_الصفوف[فريدة],0),2),0)","v":0},{"$f":"IFERROR(INDEX(قائمة_الصفوف[],MATCH(SUMPRODUCT((قائمة_الصفوف[اليوم]=جدول_الفصل_الدراسي[[#Headers],[الجمعة]])*(ROUNDDOWN($B12,10)>=ROUNDDOWN(قائمة_الصفوف[وقت البدء],10))*($B12<=قائمة_الصفوف[وقت الانتهاء]),قائمة_الصفوف[فريدة]),قائمة_الصفوف[فريدة],0),2),0)","v":0},{"$f":"IFERROR(INDEX(قائمة_الصفوف[],MATCH(SUMPRODUCT((قائمة_الصفوف[اليوم]=جدول_الفصل_الدراسي[[#Headers],[السبت]])*(ROUNDDOWN($B12,10)>=ROUNDDOWN(قائمة_الصفوف[وقت البدء],10))*($B12<=قائمة_الصفوف[وقت الانتهاء]),قائمة_الصفوف[فريدة]),قائمة_الصفوف[فريدة],0),2),0)","v":0}]
[null,"10:15:00",{"$f":"IFERROR(INDEX(قائمة_الصفوف[],MATCH(SUMPRODUCT((قائمة_الصفوف[اليوم]=جدول_الفصل_الدراسي[[#Headers],[الأحد]])*(ROUNDDOWN($B13,10)>=ROUNDDOWN(قائمة_الصفوف[وقت البدء],10))*($B13<=قائمة_الصفوف[وقت الانتهاء]),قائمة_الصفوف[فريدة]),قائمة_الصفوف[فريدة],0),2),0)","v":0},{"$f":"IFERROR(INDEX(قائمة_الصفوف[],MATCH(SUMPRODUCT((قائمة_الصفوف[اليوم]=جدول_الفصل_الدراسي[[#Headers],[الاثنين]])*(ROUNDDOWN($B13,10)>=ROUNDDOWN(قائمة_الصفوف[وقت البدء],10))*($B13<=قائمة_الصفوف[وقت الانتهاء]),قائمة_الصفوف[فريدة]),قائمة_الصفوف[فريدة],0),2),0)","v":0},{"$f":"IFERROR(INDEX(قائمة_الصفوف[],MATCH(SUMPRODUCT((قائمة_الصفوف[اليوم]=جدول_الفصل_الدراسي[[#Headers],[الثلاثاء]])*(ROUNDDOWN($B13,10)>=ROUNDDOWN(قائمة_الصفوف[وقت البدء],10))*($B13<=قائمة_الصفوف[وقت الانتهاء]),قائمة_الصفوف[فريدة]),قائمة_الصفوف[فريدة],0),2),0)","v":0},{"$f":"IFERROR(INDEX(قائمة_الصفوف[],MATCH(SUMPRODUCT((قائمة_الصفوف[اليوم]=جدول_الفصل_الدراسي[[#Headers],[الأربعاء]])*(ROUNDDOWN($B13,10)>=ROUNDDOWN(قائمة_الصفوف[وقت البدء],10))*($B13<=قائمة_الصفوف[وقت الانتهاء]),قائمة_الصفوف[فريدة]),قائمة_الصفوف[فريدة],0),2),0)","v":0},{"$f":"IFERROR(INDEX(قائمة_الصفوف[],MATCH(SUMPRODUCT((قائمة_الصفوف[اليوم]=جدول_الفصل_الدراسي[[#Headers],[الخميس]])*(ROUNDDOWN($B13,10)>=ROUNDDOWN(قائمة_الصفوف[وقت البدء],10))*($B13<=قائمة_الصفوف[وقت الانتهاء]),قائمة_الصفوف[فريدة]),قائمة_الصفوف[فريدة],0),2),0)","v":0},{"$f":"IFERROR(INDEX(قائمة_الصفوف[],MATCH(SUMPRODUCT((قائمة_الصفوف[اليوم]=جدول_الفصل_الدراسي[[#Headers],[الجمعة]])*(ROUNDDOWN($B13,10)>=ROUNDDOWN(قائمة_الصفوف[وقت البدء],10))*($B13<=قائمة_الصفوف[وقت الانتهاء]),قائمة_الصفوف[فريدة]),قائمة_الصفوف[فريدة],0),2),0)","v":0},{"$f":"IFERROR(INDEX(قائمة_الصفوف[],MATCH(SUMPRODUCT((قائمة_الصفوف[اليوم]=جدول_الفصل_الدراسي[[#Headers],[السبت]])*(ROUNDDOWN($B13,10)>=ROUNDDOWN(قائمة_الصفوف[وقت البدء],10))*($B13<=قائمة_الصفوف[وقت الانتهاء]),قائمة_الصفوف[فريدة]),قائمة_الصفوف[فريدة],0),2),0)","v":0}]
[null,"10:30:00",{"$f":"IFERROR(INDEX(قائمة_الصفوف[],MATCH(SUMPRODUCT((قائمة_الصفوف[اليوم]=جدول_الفصل_الدراسي[[#Headers],[الأحد]])*(ROUNDDOWN($B14,10)>=ROUNDDOWN(قائمة_الصفوف[وقت البدء],10))*($B14<=قائمة_الصفوف[وقت الانتهاء]),قائمة_الصفوف[فريدة]),قائمة_الصفوف[فريدة],0),2),0)","v":0},{"$f":"IFERROR(INDEX(قائمة_الصفوف[],MATCH(SUMPRODUCT((قائمة_الصفوف[اليوم]=جدول_الفصل_الدراسي[[#Headers],[الاثنين]])*(ROUNDDOWN($B14,10)>=ROUNDDOWN(قائمة_الصفوف[وقت البدء],10))*($B14<=قائمة_الصفوف[وقت الانتهاء]),قائمة_الصفوف[فريدة]),قائمة_الصفوف[فريدة],0),2),0)","v":0},{"$f":"IFERROR(INDEX(قائمة_الصفوف[],MATCH(SUMPRODUCT((قائمة_الصفوف[اليوم]=جدول_الفصل_الدراسي[[#Headers],[الثلاثاء]])*(ROUNDDOWN($B14,10)>=ROUNDDOWN(قائمة_الصفوف[وقت البدء],10))*($B14<=قائمة_الصفوف[وقت الانتهاء]),قائمة_الصفوف[فريدة]),قائمة_الصفوف[فريدة],0),2),0)","v":0},{"$f":"IFERROR(INDEX(قائمة_الصفوف[],MATCH(SUMPRODUCT((قائمة_الصفوف[اليوم]=جدول_الفصل_الدراسي[[#Headers],[الأربعاء]])*(ROUNDDOWN($B14,10)>=ROUNDDOWN(قائمة_الصفوف[وقت البدء],10))*($B14<=قائمة_الصفوف[وقت الانتهاء]),قائمة_الصفوف[فريدة]),قائمة_الصفوف[فريدة],0),2),0)","v":0},{"$f":"IFERROR(INDEX(قائمة_الصفوف[],MATCH(SUMPRODUCT((قائمة_الصفوف[اليوم]=جدول_الفصل_الدراسي[[#Headers],[الخميس]])*(ROUNDDOWN($B14,10)>=ROUNDDOWN(قائمة_الصفوف[وقت البدء],10))*($B14<=قائمة_الصفوف[وقت الانتهاء]),قائمة_الصفوف[فريدة]),قائمة_الصفوف[فريدة],0),2),0)","v":0},{"$f":"IFERROR(INDEX(قائمة_الصفوف[],MATCH(SUMPRODUCT((قائمة_الصفوف[اليوم]=جدول_الفصل_الدراسي[[#Headers],[الجمعة]])*(ROUNDDOWN($B14,10)>=ROUNDDOWN(قائمة_الصفوف[وقت البدء],10))*($B14<=قائمة_الصفوف[وقت الانتهاء]),قائمة_الصفوف[فريدة]),قائمة_الصفوف[فريدة],0),2),0)","v":0},{"$f":"IFERROR(INDEX(قائمة_الصفوف[],MATCH(SUMPRODUCT((قائمة_الصفوف[اليوم]=جدول_الفصل_الدراسي[[#Headers],[السبت]])*(ROUNDDOWN($B14,10)>=ROUNDDOWN(قائمة_الصفوف[وقت البدء],10))*($B14<=قائمة_الصفوف[وقت الانتهاء]),قائمة_الصفوف[فريدة]),قائمة_الصفوف[فريدة],0),2),0)","v":0}]
[null,"10:45:00",{"$f":"IFERROR(INDEX(قائمة_الصفوف[],MATCH(SUMPRODUCT((قائمة_الصفوف[اليوم]=جدول_الفصل_الدراسي[[#Headers],[الأحد]])*(ROUNDDOWN($B15,10)>=ROUNDDOWN(قائمة_الصفوف[وقت البدء],10))*($B15<=قائمة_الصفوف[وقت الانتهاء]),قائمة_الصفوف[فريدة]),قائمة_الصفوف[فريدة],0),2),0)","v":0},{"$f":"IFERROR(INDEX(قائمة_الصفوف[],MATCH(SUMPRODUCT((قائمة_الصفوف[اليوم]=جدول_الفصل_الدراسي[[#Headers],[الاثنين]])*(ROUNDDOWN($B15,10)>=ROUNDDOWN(قائمة_الصفوف[وقت البدء],10))*($B15<=قائمة_الصفوف[وقت الانتهاء]),قائمة_الصفوف[فريدة]),قائمة_الصفوف[فريدة],0),2),0)","v":0},{"$f":"IFERROR(INDEX(قائمة_الصفوف[],MATCH(SUMPRODUCT((قائمة_الصفوف[اليوم]=جدول_الفصل_الدراسي[[#Headers],[الثلاثاء]])*(ROUNDDOWN($B15,10)>=ROUNDDOWN(قائمة_الصفوف[وقت البدء],10))*($B15<=قائمة_الصفوف[وقت الانتهاء]),قائمة_الصفوف[فريدة]),قائمة_الصفوف[فريدة],0),2),0)","v":0},{"$f":"IFERROR(INDEX(قائمة_الصفوف[],MATCH(SUMPRODUCT((قائمة_الصفوف[اليوم]=جدول_الفصل_الدراسي[[#Headers],[الأربعاء]])*(ROUNDDOWN($B15,10)>=ROUNDDOWN(قائمة_الصفوف[وقت البدء],10))*($B15<=قائمة_الصفوف[وقت الانتهاء]),قائمة_الصفوف[فريدة]),قائمة_الصفوف[فريدة],0),2),0)","v":0},{"$f":"IFERROR(INDEX(قائمة_الصفوف[],MATCH(SUMPRODUCT((قائمة_الصفوف[اليوم]=جدول_الفصل_الدراسي[[#Headers],[الخميس]])*(ROUNDDOWN($B15,10)>=ROUNDDOWN(قائمة_الصفوف[وقت البدء],10))*($B15<=قائمة_الصفوف[وقت الانتهاء]),قائمة_الصفوف[فريدة]),قائمة_الصفوف[فريدة],0),2),0)","v":0},{"$f":"IFERROR(INDEX(قائمة_الصفوف[],MATCH(SUMPRODUCT((قائمة_الصفوف[اليوم]=جدول_الفصل_الدراسي[[#Headers],[الجمعة]])*(ROUNDDOWN($B15,10)>=ROUNDDOWN(قائمة_الصفوف[وقت البدء],10))*($B15<=قائمة_الصفوف[وقت الانتهاء]),قائمة_الصفوف[فريدة]),قائمة_الصفوف[فريدة],0),2),0)","v":0},{"$f":"IFERROR(INDEX(قائمة_الصفوف[],MATCH(SUMPRODUCT((قائمة_الصفوف[اليوم]=جدول_الفصل_الدراسي[[#Headers],[السبت]])*(ROUNDDOWN($B15,10)>=ROUNDDOWN(قائمة_الصفوف[وقت البدء],10))*($B15<=قائمة_الصفوف[وقت الانتهاء]),قائمة_الصفوف[فريدة]),قائمة_الصفوف[فريدة],0),2),0)","v":0}]
[null,"11:00:00",{"$f":"IFERROR(INDEX(قائمة_الصفوف[],MATCH(SUMPRODUCT((قائمة_الصفوف[اليوم]=جدول_الفصل_الدراسي[[#Headers],[الأحد]])*(ROUNDDOWN($B16,10)>=ROUNDDOWN(قائمة_الصفوف[وقت البدء],10))*($B16<=قائمة_الصفوف[وقت الانتهاء]),قائمة_الصفوف[فريدة]),قائمة_الصفوف[فريدة],0),2),0)","v":0},{"$f":"IFERROR(INDEX(قائمة_الصفوف[],MATCH(SUMPRODUCT((قائمة_الصفوف[اليوم]=جدول_الفصل_الدراسي[[#Headers],[الاثنين]])*(ROUNDDOWN($B16,10)>=ROUNDDOWN(قائمة_الصفوف[وقت البدء],10))*($B16<=قائمة_الصفوف[وقت الانتهاء]),قائمة_الصفوف[فريدة]),قائمة_الصفوف[فريدة],0),2),0)","v":0},{"$f":"IFERROR(INDEX(قائمة_الصفوف[],MATCH(SUMPRODUCT((قائمة_الصفوف[اليوم]=جدول_الفصل_الدراسي[[#Headers],[الثلاثاء]])*(ROUNDDOWN($B16,10)>=ROUNDDOWN(قائمة_الصفوف[وقت البدء],10))*($B16<=قائمة_الصفوف[وقت الانتهاء]),قائمة_الصفوف[فريدة]),قائمة_الصفوف[فريدة],0),2),0)","v":"الصحة واللياقة البدنية-295"},{"$f":"IFERROR(INDEX(قائمة_الصفوف[],MATCH(SUMPRODUCT((قائمة_الصفوف[اليوم]=جدول_الفصل_الدراسي[[#Headers],[الأربعاء]])*(ROUNDDOWN($B16,10)>=ROUNDDOWN(قائمة_الصفوف[وقت البدء],10))*($B16<=قائمة_الصفوف[وقت الانتهاء]),قائمة_الصفوف[فريدة]),قائمة_الصفوف[فريدة],0),2),0)","v":0},{"$f":"IFERROR(INDEX(قائمة_الصفوف[],MATCH(SUMPRODUCT((قائمة_الصفوف[اليوم]=جدول_الفصل_الدراسي[[#Headers],[الخميس]])*(ROUNDDOWN($B16,10)>=ROUNDDOWN(قائمة_الصفوف[وقت البدء],10))*($B16<=قائمة_الصفوف[وقت الانتهاء]),قائمة_الصفوف[فريدة]),قائمة_الصفوف[فريدة],0),2),0)","v":"الصحة واللياقة البدنية-295"},{"$f":"IFERROR(INDEX(قائمة_الصفوف[],MATCH(SUMPRODUCT((قائمة_الصفوف[اليوم]=جدول_الفصل_الدراسي[[#Headers],[الجمعة]])*(ROUNDDOWN($B16,10)>=ROUNDDOWN(قائمة_الصفوف[وقت البدء],10))*($B16<=قائمة_الصفوف[وقت الانتهاء]),قائمة_الصفوف[فريدة]),قائمة_الصفوف[فريدة],0),2),0)","v":0},{"$f":"IFERROR(INDEX(قائمة_الصفوف[],MATCH(SUMPRODUCT((قائمة_الصفوف[اليوم]=جدول_الفصل_الدراسي[[#Headers],[السبت]])*(ROUNDDOWN($B16,10)>=ROUNDDOWN(قائمة_الصفوف[وقت البدء],10))*($B16<=قائمة_الصفوف[وقت الانتهاء]),قائمة_الصفوف[فريدة]),قائمة_الصفوف[فريدة],0),2),0)","v":0}]
[null,"11:15:00",{"$f":"IFERROR(INDEX(قائمة_الصفوف[],MATCH(SUMPRODUCT((قائمة_الصفوف[اليوم]=جدول_الفصل_الدراسي[[#Headers],[الأحد]])*(ROUNDDOWN($B17,10)>=ROUNDDOWN(قائمة_الصفوف[وقت البدء],10))*($B17<=قائمة_الصفوف[وقت الانتهاء]),قائمة_الصفوف[فريدة]),قائمة_الصفوف[فريدة],0),2),0)","v":0},{"$f":"IFERROR(INDEX(قائمة_الصفوف[],MATCH(SUMPRODUCT((قائمة_الصفوف[اليوم]=جدول_الفصل_الدراسي[[#Headers],[الاثنين]])*(ROUNDDOWN($B17,10)>=ROUNDDOWN(قائمة_الصفوف[وقت البدء],10))*($B17<=قائمة_الصفوف[وقت الانتهاء]),قائمة_الصفوف[فريدة]),قائمة_الصفوف[فريدة],0),2),0)","v":0},{"$f":"IFERROR(INDEX(قائمة_الصفوف[],MATCH(SUMPRODUCT((قائمة_الصفوف[اليوم]=جدول_الفصل_الدراسي[[#Headers],[الثلاثاء]])*(ROUNDDOWN($B17,10)>=ROUNDDOWN(قائمة_الصفوف[وقت البدء],10))*($B17<=قائمة_الصفوف[وقت الانتهاء]),قائمة_الصفوف[فريدة]),قائمة_الصفوف[فريدة],0),2),0)","v":"الصحة واللياقة البدنية-295"},{"$f":"IFERROR(INDEX(قائمة_الصفوف[],MATCH(SUMPRODUCT((قائمة_الصفوف[اليوم]=جدول_الفصل_الدراسي[[#Headers],[الأربعاء]])*(ROUNDDOWN($B17,10)>=ROUNDDOWN(قائمة_الصفوف[وقت البدء],10))*($B17<=قائمة_الصفوف[وقت الانتهاء]),قائمة_الصفوف[فريدة]),قائمة_الصفوف[فريدة],0),2),0)","v":0},{"$f":"IFERROR(INDEX(قائمة_الصفوف[],MATCH(SUMPRODUCT((قائمة_الصفوف[اليوم]=جدول_الفصل_الدراسي[[#Headers],[الخميس]])*(ROUNDDOWN($B17,10)>=ROUNDDOWN(قائمة_الصفوف[وقت البدء],10))*($B17<=قائمة_الصفوف[وقت الانتهاء]),قائمة_الصفوف[فريدة]),قائمة_الصفوف[فريدة],0),2),0)","v":"الصحة واللياقة البدنية-295"},{"$f":"IFERROR(INDEX(قائمة_الصفوف[],MATCH(SUMPRODUCT((قائمة_الصفوف[اليوم]=جدول_الفصل_الدراسي[[#Headers],[الجمعة]])*(ROUNDDOWN($B17,10)>=ROUNDDOWN(قائمة_الصفوف[وقت البدء],10))*($B17<=قائمة_الصفوف[وقت الانتهاء]),قائمة_الصفوف[فريدة]),قائمة_الصفوف[فريدة],0),2),0)","v":0},{"$f":"IFERROR(INDEX(قائمة_الصفوف[],MATCH(SUMPRODUCT((قائمة_الصفوف[اليوم]=جدول_الفصل_الدراسي[[#Headers],[السبت]])*(ROUNDDOWN($B17,10)>=ROUNDDOWN(قائمة_الصفوف[وقت البدء],10))*($B17<=قائمة_الصفوف[وقت الانتهاء]),قائمة_الصفوف[فريدة]),قائمة_الصفوف[فريدة],0),2),0)","v":0}]
[null,"11:30:00",{"$f":"IFERROR(INDEX(قائمة_الصفوف[],MATCH(SUMPRODUCT((قائمة_الصفوف[اليوم]=جدول_الفصل_الدراسي[[#Headers],[الأحد]])*(ROUNDDOWN($B18,10)>=ROUNDDOWN(قائمة_الصفوف[وقت البدء],10))*($B18<=قائمة_الصفوف[وقت الانتهاء]),قائمة_الصفوف[فريدة]),قائمة_الصفوف[فريدة],0),2),0)","v":0},{"$f":"IFERROR(INDEX(قائمة_الصفوف[],MATCH(SUMPRODUCT((قائمة_الصفوف[اليوم]=جدول_الفصل_الدراسي[[#Headers],[الاثنين]])*(ROUNDDOWN($B18,10)>=ROUNDDOWN(قائمة_الصفوف[وقت البدء],10))*($B18<=قائمة_الصفوف[وقت الانتهاء]),قائمة_الصفوف[فريدة]),قائمة_الصفوف[فريدة],0),2),0)","v":0},{"$f":"IFERROR(INDEX(قائمة_الصفوف[],MATCH(SUMPRODUCT((قائمة_الصفوف[اليوم]=جدول_الفصل_الدراسي[[#Headers],[الثلاثاء]])*(ROUNDDOWN($B18,10)>=ROUNDDOWN(قائمة_الصفوف[وقت البدء],10))*($B18<=قائمة_الصفوف[وقت الانتهاء]),قائمة_الصفوف[فريدة]),قائمة_الصفوف[فريدة],0),2),0)","v":"الصحة واللياقة البدنية-295"},{"$f":"IFERROR(INDEX(قائمة_الصفوف[],MATCH(SUMPRODUCT((قائمة_الصفوف[اليوم]=جدول_الفصل_الدراسي[[#Headers],[الأربعاء]])*(ROUNDDOWN($B18,10)>=ROUNDDOWN(قائمة_الصفوف[وقت البدء],10))*($B18<=قائمة_الصفوف[وقت الانتهاء]),قائمة_الصفوف[فريدة]),قائمة_الصفوف[فريدة],0),2),0)","v":0},{"$f":"IFERROR(INDEX(قائمة_الصفوف[],MATCH(SUMPRODUCT((قائمة_الصفوف[اليوم]=جدول_الفصل_الدراسي[[#Headers],[الخميس]])*(ROUNDDOWN($B18,10)>=ROUNDDOWN(قائمة_الصفوف[وقت البدء],10))*($B18<=قائمة_الصفوف[وقت الانتهاء]),قائمة_الصفوف[فريدة]),قائمة_الصفوف[فريدة],0),2),0)","v":"الصحة واللياقة البدنية-295"},{"$f":"IFERROR(INDEX(قائمة_الصفوف[],MATCH(SUMPRODUCT((قائمة_الصفوف[اليوم]=جدول_الفصل_الدراسي[[#Headers],[الجمعة]])*(ROUNDDOWN($B18,10)>=ROUNDDOWN(قائمة_الصفوف[وقت البدء],10))*($B18<=قائمة_الصفوف[وقت الانتهاء]),قائمة_الصفوف[فريدة]),قائمة_الصفوف[فريدة],0),2),0)","v":0},{"$f":"IFERROR(INDEX(قائمة_الصفوف[],MATCH(SUMPRODUCT((قائمة_الصفوف[اليوم]=جدول_الفصل_الدراسي[[#Headers],[السبت]])*(ROUNDDOWN($B18,10)>=ROUNDDOWN(قائمة_الصفوف[وقت البدء],10))*($B18<=قائمة_الصفوف[وقت الانتهاء]),قائمة_الصفوف[فريدة]),قائمة_الصفوف[فريدة],0),2),0)","v":0}]
[null,"11:45:00",{"$f":"IFERROR(INDEX(قائمة_الصفوف[],MATCH(SUMPRODUCT((قائمة_الصفوف[اليوم]=جدول_الفصل_الدراسي[[#Headers],[الأحد]])*(ROUNDDOWN($B19,10)>=ROUNDDOWN(قائمة_الصفوف[وقت البدء],10))*($B19<=قائمة_الصفوف[وقت الانتهاء]),قائمة_الصفوف[فريدة]),قائمة_الصفوف[فريدة],0),2),0)","v":0},{"$f":"IFERROR(INDEX(قائمة_الصفوف[],MATCH(SUMPRODUCT((قائمة_الصفوف[اليوم]=جدول_الفصل_الدراسي[[#Headers],[الاثنين]])*(ROUNDDOWN($B19,10)>=ROUNDDOWN(قائمة_الصفوف[وقت البدء],10))*($B19<=قائمة_الصفوف[وقت الانتهاء]),قائمة_الصفوف[فريدة]),قائمة_الصفوف[فريدة],0),2),0)","v":0},{"$f":"IFERROR(INDEX(قائمة_الصفوف[],MATCH(SUMPRODUCT((قائمة_الصفوف[اليوم]=جدول_الفصل_الدراسي[[#Headers],[الثلاثاء]])*(ROUNDDOWN($B19,10)>=ROUNDDOWN(قائمة_الصفوف[وقت البدء],10))*($B19<=قائمة_الصفوف[وقت الانتهاء]),قائمة_الصفوف[فريدة]),قائمة_الصفوف[فريدة],0),2),0)","v":"الصحة واللياقة البدنية-295"},{"$f":"IFERROR(INDEX(قائمة_الصفوف[],MATCH(SUMPRODUCT((قائمة_الصفوف[اليوم]=جدول_الفصل_الدراسي[[#Headers],[الأربعاء]])*(ROUNDDOWN($B19,10)>=ROUNDDOWN(قائمة_الصفوف[وقت البدء],10))*($B19<=قائمة_الصفوف[وقت الانتهاء]),قائمة_الصفوف[فريدة]),قائمة_الصفوف[فريدة],0),2),0)","v":0},{"$f":"IFERROR(INDEX(قائمة_الصفوف[],MATCH(SUMPRODUCT((قائمة_الصفوف[اليوم]=جدول_الفصل_الدراسي[[#Headers],[الخميس]])*(ROUNDDOWN($B19,10)>=ROUNDDOWN(قائمة_الصفوف[وقت البدء],10))*($B19<=قائمة_الصفوف[وقت الانتهاء]),قائمة_الصفوف[فريدة]),قائمة_الصفوف[فريدة],0),2),0)","v":"الصحة واللياقة البدنية-295"},{"$f":"IFERROR(INDEX(قائمة_الصفوف[],MATCH(SUMPRODUCT((قائمة_الصفوف[اليوم]=جدول_الفصل_الدراسي[[#Headers],[الجمعة]])*(ROUNDDOWN($B19,10)>=ROUNDDOWN(قائمة_الصفوف[وقت البدء],10))*($B19<=قائمة_الصفوف[وقت الانتهاء]),قائمة_الصفوف[فريدة]),قائمة_الصفوف[فريدة],0),2),0)","v":0},{"$f":"IFERROR(INDEX(قائمة_الصفوف[],MATCH(SUMPRODUCT((قائمة_الصفوف[اليوم]=جدول_الفصل_الدراسي[[#Headers],[السبت]])*(ROUNDDOWN($B19,10)>=ROUNDDOWN(قائمة_الصفوف[وقت البدء],10))*($B19<=قائمة_الصفوف[وقت الانتهاء]),قائمة_الصفوف[فريدة]),قائمة_الصفوف[فريدة],0),2),0)","v":0}]
[null,"12:00:00",{"$f":"IFERROR(INDEX(قائمة_الصفوف[],MATCH(SUMPRODUCT((قائمة_الصفوف[اليوم]=جدول_الفصل_الدراسي[[#Headers],[الأحد]])*(ROUNDDOWN($B20,10)>=ROUNDDOWN(قائمة_الصفوف[وقت البدء],10))*($B20<=قائمة_الصفوف[وقت الانتهاء]),قائمة_الصفوف[فريدة]),قائمة_الصفوف[فريدة],0),2),0)","v":0},{"$f":"IFERROR(INDEX(قائمة_الصفوف[],MATCH(SUMPRODUCT((قائمة_الصفوف[اليوم]=جدول_الفصل_الدراسي[[#Headers],[الاثنين]])*(ROUNDDOWN($B20,10)>=ROUNDDOWN(قائمة_الصفوف[وقت البدء],10))*($B20<=قائمة_الصفوف[وقت الانتهاء]),قائمة_الصفوف[فريدة]),قائمة_الصفوف[فريدة],0),2),0)","v":0},{"$f":"IFERROR(INDEX(قائمة_الصفوف[],MATCH(SUMPRODUCT((قائمة_الصفوف[اليوم]=جدول_الفصل_الدراسي[[#Headers],[الثلاثاء]])*(ROUNDDOWN($B20,10)>=ROUNDDOWN(قائمة_الصفوف[وقت البدء],10))*($B20<=قائمة_الصفوف[وقت الانتهاء]),قائمة_الصفوف[فريدة]),قائمة_الصفوف[فريدة],0),2),0)","v":"الصحة واللياقة البدنية-295"},{"$f":"IFERROR(INDEX(قائمة_الصفوف[],MATCH(SUMPRODUCT((قائمة_الصفوف[اليوم]=جدول_الفصل_الدراسي[[#Headers],[الأربعاء]])*(ROUNDDOWN($B20,10)>=ROUNDDOWN(قائمة_الصفوف[وقت البدء],10))*($B20<=قائمة_الصفوف[وقت الانتهاء]),قائمة_الصفوف[فريدة]),قائمة_الصفوف[فريدة],0),2),0)","v":0},{"$f":"IFERROR(INDEX(قائمة_الصفوف[],MATCH(SUMPRODUCT((قائمة_الصفوف[اليوم]=جدول_الفصل_الدراسي[[#Headers],[الخميس]])*(ROUNDDOWN($B20,10)>=ROUNDDOWN(قائمة_الصفوف[وقت البدء],10))*($B20<=قائمة_الصفوف[وقت الانتهاء]),قائمة_الصفوف[فريدة]),قائمة_الصفوف[فريدة],0),2),0)","v":"الصحة واللياقة البدنية-295"},{"$f":"IFERROR(INDEX(قائمة_الصفوف[],MATCH(SUMPRODUCT((قائمة_الصفوف[اليوم]=جدول_الفصل_الدراسي[[#Headers],[الجمعة]])*(ROUNDDOWN($B20,10)>=ROUNDDOWN(قائمة_الصفوف[وقت البدء],10))*($B20<=قائمة_الصفوف[وقت الانتهاء]),قائمة_الصفوف[فريدة]),قائمة_الصفوف[فريدة],0),2),0)","v":0},{"$f":"IFERROR(INDEX(قائمة_الصفوف[],MATCH(SUMPRODUCT((قائمة_الصفوف[اليوم]=جدول_الفصل_الدراسي[[#Headers],[السبت]])*(ROUNDDOWN($B20,10)>=ROUNDDOWN(قائمة_الصفوف[وقت البدء],10))*($B20<=قائمة_الصفوف[وقت الانتهاء]),قائمة_الصفوف[فريدة]),قائمة_الصفوف[فريدة],0),2),0)","v":0}]
[null,"12:15:00",{"$f":"IFERROR(INDEX(قائمة_الصفوف[],MATCH(SUMPRODUCT((قائمة_الصفوف[اليوم]=جدول_الفصل_الدراسي[[#Headers],[الأحد]])*(ROUNDDOWN($B21,10)>=ROUNDDOWN(قائمة_الصفوف[وقت البدء],10))*($B21<=قائمة_الصفوف[وقت الانتهاء]),قائمة_الصفوف[فريدة]),قائمة_الصفوف[فريدة],0),2),0)","v":0},{"$f":"IFERROR(INDEX(قائمة_الصفوف[],MATCH(SUMPRODUCT((قائمة_الصفوف[اليوم]=جدول_الفصل_الدراسي[[#Headers],[الاثنين]])*(ROUNDDOWN($B21,10)>=ROUNDDOWN(قائمة_الصفوف[وقت البدء],10))*($B21<=قائمة_الصفوف[وقت الانتهاء]),قائمة_الصفوف[فريدة]),قائمة_الصفوف[فريدة],0),2),0)","v":0},{"$f":"IFERROR(INDEX(قائمة_الصفوف[],MATCH(SUMPRODUCT((قائمة_الصفوف[اليوم]=جدول_الفصل_الدراسي[[#Headers],[الثلاثاء]])*(ROUNDDOWN($B21,10)>=ROUNDDOWN(قائمة_الصفوف[وقت البدء],10))*($B21<=قائمة_الصفوف[وقت الانتهاء]),قائمة_الصفوف[فريدة]),قائمة_الصفوف[فريدة],0),2),0)","v":0},{"$f":"IFERROR(INDEX(قائمة_الصفوف[],MATCH(SUMPRODUCT((قائمة_الصفوف[اليوم]=جدول_الفصل_الدراسي[[#Headers],[الأربعاء]])*(ROUNDDOWN($B21,10)>=ROUNDDOWN(قائمة_الصفوف[وقت البدء],10))*($B21<=قائمة_الصفوف[وقت الانتهاء]),قائمة_الصفوف[فريدة]),قائمة_الصفوف[فريدة],0),2),0)","v":0},{"$f":"IFERROR(INDEX(قائمة_الصفوف[],MATCH(SUMPRODUCT((قائمة_الصفوف[اليوم]=جدول_الفصل_الدراسي[[#Headers],[الخميس]])*(ROUNDDOWN($B21,10)>=ROUNDDOWN(قائمة_الصفوف[وقت البدء],10))*($B21<=قائمة_الصفوف[وقت الانتهاء]),قائمة_الصفوف[فريدة]),قائمة_الصفوف[فريدة],0),2),0)","v":0},{"$f":"IFERROR(INDEX(قائمة_الصفوف[],MATCH(SUMPRODUCT((قائمة_الصفوف[اليوم]=جدول_الفصل_الدراسي[[#Headers],[الجمعة]])*(ROUNDDOWN($B21,10)>=ROUNDDOWN(قائمة_الصفوف[وقت البدء],10))*($B21<=قائمة_الصفوف[وقت الانتهاء]),قائمة_الصفوف[فريدة]),قائمة_الصفوف[فريدة],0),2),0)","v":0},{"$f":"IFERROR(INDEX(قائمة_الصفوف[],MATCH(SUMPRODUCT((قائمة_الصفوف[اليوم]=جدول_الفصل_الدراسي[[#Headers],[السبت]])*(ROUNDDOWN($B21,10)>=ROUNDDOWN(قائمة_الصفوف[وقت البدء],10))*($B21<=قائمة_الصفوف[وقت الانتهاء]),قائمة_الصفوف[فريدة]),قائمة_الصفوف[فريدة],0),2),0)","v":0}]
[null,"12:30:00",{"$f":"IFERROR(INDEX(قائمة_الصفوف[],MATCH(SUMPRODUCT((قائمة_الصفوف[اليوم]=جدول_الفصل_الدراسي[[#Headers],[الأحد]])*(ROUNDDOWN($B22,10)>=ROUNDDOWN(قائمة_الصفوف[وقت البدء],10))*($B22<=قائمة_الصفوف[وقت الانتهاء]),قائمة_الصفوف[فريدة]),قائمة_الصفوف[فريدة],0),2),0)","v":0},{"$f":"IFERROR(INDEX(قائمة_الصفوف[],MATCH(SUMPRODUCT((قائمة_الصفوف[اليوم]=جدول_الفصل_الدراسي[[#Headers],[الاثنين]])*(ROUNDDOWN($B22,10)>=ROUNDDOWN(قائمة_الصفوف[وقت البدء],10))*($B22<=قائمة_الصفوف[وقت الانتهاء]),قائمة_الصفوف[فريدة]),قائمة_الصفوف[فريدة],0),2),0)","v":0},{"$f":"IFERROR(INDEX(قائمة_الصفوف[],MATCH(SUMPRODUCT((قائمة_الصفوف[اليوم]=جدول_الفصل_الدراسي[[#Headers],[الثلاثاء]])*(ROUNDDOWN($B22,10)>=ROUNDDOWN(قائمة_الصفوف[وقت البدء],10))*($B22<=قائمة_الصفوف[وقت الانتهاء]),قائمة_الصفوف[فريدة]),قائمة_الصفوف[فريدة],0),2),0)","v":0},{"$f":"IFERROR(INDEX(قائمة_الصفوف[],MATCH(SUMPRODUCT((قائمة_الصفوف[اليوم]=جدول_الفصل_الدراسي[[#Headers],[الأربعاء]])*(ROUNDDOWN($B22,10)>=ROUNDDOWN(قائمة_الصفوف[وقت البدء],10))*($B22<=قائمة_الصفوف[وقت الانتهاء]),قائمة_الصفوف[فريدة]),قائمة_الصفوف[فريدة],0),2),0)","v":0},{"$f":"IFERROR(INDEX(قائمة_الصفوف[],MATCH(SUMPRODUCT((قائمة_الصفوف[اليوم]=جدول_الفصل_الدراسي[[#Headers],[الخميس]])*(ROUNDDOWN($B22,10)>=ROUNDDOWN(قائمة_الصفوف[وقت البدء],10))*($B22<=قائمة_الصفوف[وقت الانتهاء]),قائمة_الصفوف[فريدة]),قائمة_الصفوف[فريدة],0),2),0)","v":0},{"$f":"IFERROR(INDEX(قائمة_الصفوف[],MATCH(SUMPRODUCT((قائمة_الصفوف[اليوم]=جدول_الفصل_الدراسي[[#Headers],[الجمعة]])*(ROUNDDOWN($B22,10)>=ROUNDDOWN(قائمة_الصفوف[وقت البدء],10))*($B22<=قائمة_الصفوف[وقت الانتهاء]),قائمة_الصفوف[فريدة]),قائمة_الصفوف[فريدة],0),2),0)","v":0},{"$f":"IFERROR(INDEX(قائمة_الصفوف[],MATCH(SUMPRODUCT((قائمة_الصفوف[اليوم]=جدول_الفصل_الدراسي[[#Headers],[السبت]])*(ROUNDDOWN($B22,10)>=ROUNDDOWN(قائمة_الصفوف[وقت البدء],10))*($B22<=قائمة_الصفوف[وقت الانتهاء]),قائمة_الصفوف[فريدة]),قائمة_الصفوف[فريدة],0),2),0)","v":0}]
[null,"12:45:00",{"$f":"IFERROR(INDEX(قائمة_الصفوف[],MATCH(SUMPRODUCT((قائمة_الصفوف[اليوم]=جدول_الفصل_الدراسي[[#Headers],[الأحد]])*(ROUNDDOWN($B23,10)>=ROUNDDOWN(قائمة_الصفوف[وقت البدء],10))*($B23<=قائمة_الصفوف[وقت الانتهاء]),قائمة_الصفوف[فريدة]),قائمة_الصفوف[فريدة],0),2),0)","v":0},{"$f":"IFERROR(INDEX(قائمة_الصفوف[],MATCH(SUMPRODUCT((قائمة_الصفوف[اليوم]=جدول_الفصل_الدراسي[[#Headers],[الاثنين]])*(ROUNDDOWN($B23,10)>=ROUNDDOWN(قائمة_الصفوف[وقت البدء],10))*($B23<=قائمة_الصفوف[وقت الانتهاء]),قائمة_الصفوف[فريدة]),قائمة_الصفوف[فريدة],0),2),0)","v":0},{"$f":"IFERROR(INDEX(قائمة_الصفوف[],MATCH(SUMPRODUCT((قائمة_الصفوف[اليوم]=جدول_الفصل_الدراسي[[#Headers],[الثلاثاء]])*(ROUNDDOWN($B23,10)>=ROUNDDOWN(قائمة_الصفوف[وقت البدء],10))*($B23<=قائمة_الصفوف[وقت الانتهاء]),قائمة_الصفوف[فريدة]),قائمة_الصفوف[فريدة],0),2),0)","v":0},{"$f":"IFERROR(INDEX(قائمة_الصفوف[],MATCH(SUMPRODUCT((قائمة_الصفوف[اليوم]=جدول_الفصل_الدراسي[[#Headers],[الأربعاء]])*(ROUNDDOWN($B23,10)>=ROUNDDOWN(قائمة_الصفوف[وقت البدء],10))*($B23<=قائمة_الصفوف[وقت الانتهاء]),قائمة_الصفوف[فريدة]),قائمة_الصفوف[فريدة],0),2),0)","v":0},{"$f":"IFERROR(INDEX(قائمة_الصفوف[],MATCH(SUMPRODUCT((قائمة_الصفوف[اليوم]=جدول_الفصل_الدراسي[[#Headers],[الخميس]])*(ROUNDDOWN($B23,10)>=ROUNDDOWN(قائمة_الصفوف[وقت البدء],10))*($B23<=قائمة_الصفوف[وقت الانتهاء]),قائمة_الصفوف[فريدة]),قائمة_الصفوف[فريدة],0),2),0)","v":0},{"$f":"IFERROR(INDEX(قائمة_الصفوف[],MATCH(SUMPRODUCT((قائمة_الصفوف[اليوم]=جدول_الفصل_الدراسي[[#Headers],[الجمعة]])*(ROUNDDOWN($B23,10)>=ROUNDDOWN(قائمة_الصفوف[وقت البدء],10))*($B23<=قائمة_الصفوف[وقت الانتهاء]),قائمة_الصفوف[فريدة]),قائمة_الصفوف[فريدة],0),2),0)","v":0},{"$f":"IFERROR(INDEX(قائمة_الصفوف[],MATCH(SUMPRODUCT((قائمة_الصفوف[اليوم]=جدول_الفصل_الدراسي[[#Headers],[السبت]])*(ROUNDDOWN($B23,10)>=ROUNDDOWN(قائمة_الصفوف[وقت البدء],10))*($B23<=قائمة_الصفوف[وقت الانتهاء]),قائمة_الصفوف[فريدة]),قائمة_الصفوف[فريدة],0),2),0)","v":0}]
[null,"13:00:00",{"$f":"IFERROR(INDEX(قائمة_الصفوف[],MATCH(SUMPRODUCT((قائمة_الصفوف[اليوم]=جدول_الفصل_الدراسي[[#Headers],[الأحد]])*(ROUNDDOWN($B24,10)>=ROUNDDOWN(قائمة_الصفوف[وقت البدء],10))*($B24<=قائمة_الصفوف[وقت الانتهاء]),قائمة_الصفوف[فريدة]),قائمة_الصفوف[فريدة],0),2),0)","v":0},{"$f":"IFERROR(INDEX(قائمة_الصفوف[],MATCH(SUMPRODUCT((قائمة_الصفوف[اليوم]=جدول_الفصل_الدراسي[[#Headers],[الاثنين]])*(ROUNDDOWN($B24,10)>=ROUNDDOWN(قائمة_الصفوف[وقت البدء],10))*($B24<=قائمة_الصفوف[وقت الانتهاء]),قائمة_الصفوف[فريدة]),قائمة_الصفوف[فريدة],0),2),0)","v":"الكتابة-121"},{"$f":"IFERROR(INDEX(قائمة_الصفوف[],MATCH(SUMPRODUCT((قائمة_الصفوف[اليوم]=جدول_الفصل_الدراسي[[#Headers],[الثلاثاء]])*(ROUNDDOWN($B24,10)>=ROUNDDOWN(قائمة_الصفوف[وقت البدء],10))*($B24<=قائمة_الصفوف[وقت الانتهاء]),قائمة_الصفوف[فريدة]),قائمة_الصفوف[فريدة],0),2),0)","v":0},{"$f":"IFERROR(INDEX(قائمة_الصفوف[],MATCH(SUMPRODUCT((قائمة_الصفوف[اليوم]=جدول_الفصل_الدراسي[[#Headers],[الأربعاء]])*(ROUNDDOWN($B24,10)>=ROUNDDOWN(قائمة_الصفوف[وقت البدء],10))*($B24<=قائمة_الصفوف[وقت الانتهاء]),قائمة_الصفوف[فريدة]),قائمة_الصفوف[فريدة],0),2),0)","v":"الكتابة-121"},{"$f":"IFERROR(INDEX(قائمة_الصفوف[],MATCH(SUMPRODUCT((قائمة_الصفوف[اليوم]=جدول_الفصل_الدراسي[[#Headers],[الخميس]])*(ROUNDDOWN($B24,10)>=ROUNDDOWN(قائمة_الصفوف[وقت البدء],10))*($B24<=قائمة_الصفوف[وقت الانتهاء]),قائمة_الصفوف[فريدة]),قائمة_الصفوف[فريدة],0),2),0)","v":0},{"$f":"IFERROR(INDEX(قائمة_الصفوف[],MATCH(SUMPRODUCT((قائمة_الصفوف[اليوم]=جدول_الفصل_الدراسي[[#Headers],[الجمعة]])*(ROUNDDOWN($B24,10)>=ROUNDDOWN(قائمة_الصفوف[وقت البدء],10))*($B24<=قائمة_الصفوف[وقت الانتهاء]),قائمة_الصفوف[فريدة]),قائمة_الصفوف[فريدة],0),2),0)","v":0},{"$f":"IFERROR(INDEX(قائمة_الصفوف[],MATCH(SUMPRODUCT((قائمة_الصفوف[اليوم]=جدول_الفصل_الدراسي[[#Headers],[السبت]])*(ROUNDDOWN($B24,10)>=ROUNDDOWN(قائمة_الصفوف[وقت البدء],10))*($B24<=قائمة_الصفوف[وقت الانتهاء]),قائمة_الصفوف[فريدة]),قائمة_الصفوف[فريدة],0),2),0)","v":0}]
[null,"13:15:00",{"$f":"IFERROR(INDEX(قائمة_الصفوف[],MATCH(SUMPRODUCT((قائمة_الصفوف[اليوم]=جدول_الفصل_الدراسي[[#Headers],[الأحد]])*(ROUNDDOWN($B25,10)>=ROUNDDOWN(قائمة_الصفوف[وقت البدء],10))*($B25<=قائمة_الصفوف[وقت الانتهاء]),قائمة_الصفوف[فريدة]),قائمة_الصفوف[فريدة],0),2),0)","v":0},{"$f":"IFERROR(INDEX(قائمة_الصفوف[],MATCH(SUMPRODUCT((قائمة_الصفوف[اليوم]=جدول_الفصل_الدراسي[[#Headers],[الاثنين]])*(ROUNDDOWN($B25,10)>=ROUNDDOWN(قائمة_الصفوف[وقت البدء],10))*($B25<=قائمة_الصفوف[وقت الانتهاء]),قائمة_الصفوف[فريدة]),قائمة_الصفوف[فريدة],0),2),0)","v":"الكتابة-121"},{"$f":"IFERROR(INDEX(قائمة_الصفوف[],MATCH(SUMPRODUCT((قائمة_الصفوف[اليوم]=جدول_الفصل_الدراسي[[#Headers],[الثلاثاء]])*(ROUNDDOWN($B25,10)>=ROUNDDOWN(قائمة_الصفوف[وقت البدء],10))*($B25<=قائمة_الصفوف[وقت الانتهاء]),قائمة_الصفوف[فريدة]),قائمة_الصفوف[فريدة],0),2),0)","v":0},{"$f":"IFERROR(INDEX(قائمة_الصفوف[],MATCH(SUMPRODUCT((قائمة_الصفوف[اليوم]=جدول_الفصل_الدراسي[[#Headers],[الأربعاء]])*(ROUNDDOWN($B25,10)>=ROUNDDOWN(قائمة_الصفوف[وقت البدء],10))*($B25<=قائمة_الصفوف[وقت الانتهاء]),قائمة_الصفوف[فريدة]),قائمة_الصفوف[فريدة],0),2),0)","v":"الكتابة-121"},{"$f":"IFERROR(INDEX(قائمة_الصفوف[],MATCH(SUMPRODUCT((قائمة_الصفوف[اليوم]=جدول_الفصل_الدراسي[[#Headers],[الخميس]])*(ROUNDDOWN($B25,10)>=ROUNDDOWN(قائمة_الصفوف[وقت البدء],10))*($B25<=قائمة_الصفوف[وقت الانتهاء]),قائمة_الصفوف[فريدة]),قائمة_الصفوف[فريدة],0),2),0)","v":0},{"$f":"IFERROR(INDEX(قائمة_الصفوف[],MATCH(SUMPRODUCT((قائمة_الصفوف[اليوم]=جدول_الفصل_الدراسي[[#Headers],[الجمعة]])*(ROUNDDOWN($B25,10)>=ROUNDDOWN(قائمة_الصفوف[وقت البدء],10))*($B25<=قائمة_الصفوف[وقت الانتهاء]),قائمة_الصفوف[فريدة]),قائمة_الصفوف[فريدة],0),2),0)","v":0},{"$f":"IFERROR(INDEX(قائمة_الصفوف[],MATCH(SUMPRODUCT((قائمة_الصفوف[اليوم]=جدول_الفصل_الدراسي[[#Headers],[السبت]])*(ROUNDDOWN($B25,10)>=ROUNDDOWN(قائمة_الصفوف[وقت البدء],10))*($B25<=قائمة_الصفوف[وقت الانتهاء]),قائمة_الصفوف[فريدة]),قائمة_الصفوف[فريدة],0),2),0)","v":0}]
[null,"13:30:00",{"$f":"IFERROR(INDEX(قائمة_الصفوف[],MATCH(SUMPRODUCT((قائمة_الصفوف[اليوم]=جدول_الفصل_الدراسي[[#Headers],[الأحد]])*(ROUNDDOWN($B26,10)>=ROUNDDOWN(قائمة_الصفوف[وقت البدء],10))*($B26<=قائمة_الصفوف[وقت الانتهاء]),قائمة_الصفوف[فريدة]),قائمة_الصفوف[فريدة],0),2),0)","v":0},{"$f":"IFERROR(INDEX(قائمة_الصفوف[],MATCH(SUMPRODUCT((قائمة_الصفوف[اليوم]=جدول_الفصل_الدراسي[[#Headers],[الاثنين]])*(ROUNDDOWN($B26,10)>=ROUNDDOWN(قائمة_الصفوف[وقت البدء],10))*($B26<=قائمة_الصفوف[وقت الانتهاء]),قائمة_الصفوف[فريدة]),قائمة_الصفوف[فريدة],0),2),0)","v":"الكتابة-121"},{"$f":"IFERROR(INDEX(قائمة_الصفوف[],MATCH(SUMPRODUCT((قائمة_الصفوف[اليوم]=جدول_الفصل_الدراسي[[#Headers],[الثلاثاء]])*(ROUNDDOWN($B26,10)>=ROUNDDOWN(قائمة_الصفوف[وقت البدء],10))*($B26<=قائمة_الصفوف[وقت الانتهاء]),قائمة_الصفوف[فريدة]),قائمة_الصفوف[فريدة],0),2),0)","v":0},{"$f":"IFERROR(INDEX(قائمة_الصفوف[],MATCH(SUMPRODUCT((قائمة_الصفوف[اليوم]=جدول_الفصل_الدراسي[[#Headers],[الأربعاء]])*(ROUNDDOWN($B26,10)>=ROUNDDOWN(قائمة_الصفوف[وقت البدء],10))*($B26<=قائمة_الصفوف[وقت الانتهاء]),قائمة_الصفوف[فريدة]),قائمة_الصفوف[فريدة],0),2),0)","v":"الكتابة-121"},{"$f":"IFERROR(INDEX(قائمة_الصفوف[],MATCH(SUMPRODUCT((قائمة_الصفوف[اليوم]=جدول_الفصل_الدراسي[[#Headers],[الخميس]])*(ROUNDDOWN($B26,10)>=ROUNDDOWN(قائمة_الصفوف[وقت البدء],10))*($B26<=قائمة_الصفوف[وقت الانتهاء]),قائمة_الصفوف[فريدة]),قائمة_الصفوف[فريدة],0),2),0)","v":0},{"$f":"IFERROR(INDEX(قائمة_الصفوف[],MATCH(SUMPRODUCT((قائمة_الصفوف[اليوم]=جدول_الفصل_الدراسي[[#Headers],[الجمعة]])*(ROUNDDOWN($B26,10)>=ROUNDDOWN(قائمة_الصفوف[وقت البدء],10))*($B26<=قائمة_الصفوف[وقت الانتهاء]),قائمة_الصفوف[فريدة]),قائمة_الصفوف[فريدة],0),2),0)","v":0},{"$f":"IFERROR(INDEX(قائمة_الصفوف[],MATCH(SUMPRODUCT((قائمة_الصفوف[اليوم]=جدول_الفصل_الدراسي[[#Headers],[السبت]])*(ROUNDDOWN($B26,10)>=ROUNDDOWN(قائمة_الصفوف[وقت البدء],10))*($B26<=قائمة_الصفوف[وقت الانتهاء]),قائمة_الصفوف[فريدة]),قائمة_الصفوف[فريدة],0),2),0)","v":0}]
[null,"13:45:00",{"$f":"IFERROR(INDEX(قائمة_الصفوف[],MATCH(SUMPRODUCT((قائمة_الصفوف[اليوم]=جدول_الفصل_الدراسي[[#Headers],[الأحد]])*(ROUNDDOWN($B27,10)>=ROUNDDOWN(قائمة_الصفوف[وقت البدء],10))*($B27<=قائمة_الصفوف[وقت الانتهاء]),قائمة_الصفوف[فريدة]),قائمة_الصفوف[فريدة],0),2),0)","v":0},{"$f":"IFERROR(INDEX(قائمة_الصفوف[],MATCH(SUMPRODUCT((قائمة_الصفوف[اليوم]=جدول_الفصل_الدراسي[[#Headers],[الاثنين]])*(ROUNDDOWN($B27,10)>=ROUNDDOWN(قائمة_الصفوف[وقت البدء],10))*($B27<=قائمة_الصفوف[وقت الانتهاء]),قائمة_الصفوف[فريدة]),قائمة_الصفوف[فريدة],0),2),0)","v":"الكتابة-121"},{"$f":"IFERROR(INDEX(قائمة_الصفوف[],MATCH(SUMPRODUCT((قائمة_الصفوف[اليوم]=جدول_الفصل_الدراسي[[#Headers],[الثلاثاء]])*(ROUNDDOWN($B27,10)>=ROUNDDOWN(قائمة_الصفوف[وقت البدء],10))*($B27<=قائمة_الصفوف[وقت الانتهاء]),قائمة_الصفوف[فريدة]),قائمة_الصفوف[فريدة],0),2),0)","v":0},{"$f":"IFERROR(INDEX(قائمة_الصفوف[],MATCH(SUMPRODUCT((قائمة_الصفوف[اليوم]=جدول_الفصل_الدراسي[[#Headers],[الأربعاء]])*(ROUNDDOWN($B27,10)>=ROUNDDOWN(قائمة_الصفوف[وقت البدء],10))*($B27<=قائمة_الصفوف[وقت الانتهاء]),قائمة_الصفوف[فريدة]),قائمة_الصفوف[فريدة],0),2),0)","v":"الكتابة-121"},{"$f":"IFERROR(INDEX(قائمة_الصفوف[],MATCH(SUMPRODUCT((قائمة_الصفوف[اليوم]=جدول_الفصل_الدراسي[[#Headers],[الخميس]])*(ROUNDDOWN($B27,10)>=ROUNDDOWN(قائمة_الصفوف[وقت البدء],10))*($B27<=قائمة_الصفوف[وقت الانتهاء]),قائمة_الصفوف[فريدة]),قائمة_الصفوف[فريدة],0),2),0)","v":0},{"$f":"IFERROR(INDEX(قائمة_الصفوف[],MATCH(SUMPRODUCT((قائمة_الصفوف[اليوم]=جدول_الفصل_الدراسي[[#Headers],[الجمعة]])*(ROUNDDOWN($B27,10)>=ROUNDDOWN(قائمة_الصفوف[وقت البدء],10))*($B27<=قائمة_الصفوف[وقت الانتهاء]),قائمة_الصفوف[فريدة]),قائمة_الصفوف[فريدة],0),2),0)","v":0},{"$f":"IFERROR(INDEX(قائمة_الصفوف[],MATCH(SUMPRODUCT((قائمة_الصفوف[اليوم]=جدول_الفصل_الدراسي[[#Headers],[السبت]])*(ROUNDDOWN($B27,10)>=ROUNDDOWN(قائمة_الصفوف[وقت البدء],10))*($B27<=قائمة_الصفوف[وقت الانتهاء]),قائمة_الصفوف[فريدة]),قائمة_الصفوف[فريدة],0),2),0)","v":0}]
[null,"14:00:00",{"$f":"IFERROR(INDEX(قائمة_الصفوف[],MATCH(SUMPRODUCT((قائمة_الصفوف[اليوم]=جدول_الفصل_الدراسي[[#Headers],[الأحد]])*(ROUNDDOWN($B28,10)>=ROUNDDOWN(قائمة_الصفوف[وقت البدء],10))*($B28<=قائمة_الصفوف[وقت الانتهاء]),قائمة_الصفوف[فريدة]),قائمة_الصفوف[فريدة],0),2),0)","v":0},{"$f":"IFERROR(INDEX(قائمة_الصفوف[],MATCH(SUMPRODUCT((قائمة_الصفوف[اليوم]=جدول_الفصل_الدراسي[[#Headers],[الاثنين]])*(ROUNDDOWN($B28,10)>=ROUNDDOWN(قائمة_الصفوف[وقت البدء],10))*($B28<=قائمة_الصفوف[وقت الانتهاء]),قائمة_الصفوف[فريدة]),قائمة_الصفوف[فريدة],0),2),0)","v":"الكتابة-121"},{"$f":"IFERROR(INDEX(قائمة_الصفوف[],MATCH(SUMPRODUCT((قائمة_الصفوف[اليوم]=جدول_الفصل_الدراسي[[#Headers],[الثلاثاء]])*(ROUNDDOWN($B28,10)>=ROUNDDOWN(قائمة_الصفوف[وقت البدء],10))*($B28<=قائمة_الصفوف[وقت الانتهاء]),قائمة_الصفوف[فريدة]),قائمة_الصفوف[فريدة],0),2),0)","v":0},{"$f":"IFERROR(INDEX(قائمة_الصفوف[],MATCH(SUMPRODUCT((قائمة_الصفوف[اليوم]=جدول_الفصل_الدراسي[[#Headers],[الأربعاء]])*(ROUNDDOWN($B28,10)>=ROUNDDOWN(قائمة_الصفوف[وقت البدء],10))*($B28<=قائمة_الصفوف[وقت الانتهاء]),قائمة_الصفوف[فريدة]),قائمة_الصفوف[فريدة],0),2),0)","v":"الكتابة-121"},{"$f":"IFERROR(INDEX(قائمة_الصفوف[],MATCH(SUMPRODUCT((قائمة_الصفوف[اليوم]=جدول_الفصل_الدراسي[[#Headers],[الخميس]])*(ROUNDDOWN($B28,10)>=ROUNDDOWN(قائمة_الصفوف[وقت البدء],10))*($B28<=قائمة_الصفوف[وقت الانتهاء]),قائمة_الصفوف[فريدة]),قائمة_الصفوف[فريدة],0),2),0)","v":0},{"$f":"IFERROR(INDEX(قائمة_الصفوف[],MATCH(SUMPRODUCT((قائمة_الصفوف[اليوم]=جدول_الفصل_الدراسي[[#Headers],[الجمعة]])*(ROUNDDOWN($B28,10)>=ROUNDDOWN(قائمة_الصفوف[وقت البدء],10))*($B28<=قائمة_الصفوف[وقت الانتهاء]),قائمة_الصفوف[فريدة]),قائمة_الصفوف[فريدة],0),2),0)","v":0},{"$f":"IFERROR(INDEX(قائمة_الصفوف[],MATCH(SUMPRODUCT((قائمة_الصفوف[اليوم]=جدول_الفصل_الدراسي[[#Headers],[السبت]])*(ROUNDDOWN($B28,10)>=ROUNDDOWN(قائمة_الصفوف[وقت البدء],10))*($B28<=قائمة_الصفوف[وقت الانتهاء]),قائمة_الصفوف[فريدة]),قائمة_الصفوف[فريدة],0),2),0)","v":0}]
[null,"14:15:00",{"$f":"IFERROR(INDEX(قائمة_الصفوف[],MATCH(SUMPRODUCT((قائمة_الصفوف[اليوم]=جدول_الفصل_الدراسي[[#Headers],[الأحد]])*(ROUNDDOWN($B29,10)>=ROUNDDOWN(قائمة_الصفوف[وقت البدء],10))*($B29<=قائمة_الصفوف[وقت الانتهاء]),قائمة_الصفوف[فريدة]),قائمة_الصفوف[فريدة],0),2),0)","v":0},{"$f":"IFERROR(INDEX(قائمة_الصفوف[],MATCH(SUMPRODUCT((قائمة_الصفوف[اليوم]=جدول_الفصل_الدراسي[[#Headers],[الاثنين]])*(ROUNDDOWN($B29,10)>=ROUNDDOWN(قائمة_الصفوف[وقت البدء],10))*($B29<=قائمة_الصفوف[وقت الانتهاء]),قائمة_الصفوف[فريدة]),قائمة_الصفوف[فريدة],0),2),0)","v":0},{"$f":"IFERROR(INDEX(قائمة_الصفوف[],MATCH(SUMPRODUCT((قائمة_الصفوف[اليوم]=جدول_الفصل_الدراسي[[#Headers],[الثلاثاء]])*(ROUNDDOWN($B29,10)>=ROUNDDOWN(قائمة_الصفوف[وقت البدء],10))*($B29<=قائمة_الصفوف[وقت الانتهاء]),قائمة_الصفوف[فريدة]),قائمة_الصفوف[فريدة],0),2),0)","v":0},{"$f":"IFERROR(INDEX(قائمة_الصفوف[],MATCH(SUMPRODUCT((قائمة_الصفوف[اليوم]=جدول_الفصل_الدراسي[[#Headers],[الأربعاء]])*(ROUNDDOWN($B29,10)>=ROUNDDOWN(قائمة_الصفوف[وقت البدء],10))*($B29<=قائمة_الصفوف[وقت الانتهاء]),قائمة_الصفوف[فريدة]),قائمة_الصفوف[فريدة],0),2),0)","v":0},{"$f":"IFERROR(INDEX(قائمة_الصفوف[],MATCH(SUMPRODUCT((قائمة_الصفوف[اليوم]=جدول_الفصل_الدراسي[[#Headers],[الخميس]])*(ROUNDDOWN($B29,10)>=ROUNDDOWN(قائمة_الصفوف[وقت البدء],10))*($B29<=قائمة_الصفوف[وقت الانتهاء]),قائمة_الصفوف[فريدة]),قائمة_الصفوف[فريدة],0),2),0)","v":0},{"$f":"IFERROR(INDEX(قائمة_الصفوف[],MATCH(SUMPRODUCT((قائمة_الصفوف[اليوم]=جدول_الفصل_الدراسي[[#Headers],[الجمعة]])*(ROUNDDOWN($B29,10)>=ROUNDDOWN(قائمة_الصفوف[وقت البدء],10))*($B29<=قائمة_الصفوف[وقت الانتهاء]),قائمة_الصفوف[فريدة]),قائمة_الصفوف[فريدة],0),2),0)","v":0},{"$f":"IFERROR(INDEX(قائمة_الصفوف[],MATCH(SUMPRODUCT((قائمة_الصفوف[اليوم]=جدول_الفصل_الدراسي[[#Headers],[السبت]])*(ROUNDDOWN($B29,10)>=ROUNDDOWN(قائمة_الصفوف[وقت البدء],10))*($B29<=قائمة_الصفوف[وقت الانتهاء]),قائمة_الصفوف[فريدة]),قائمة_الصفوف[فريدة],0),2),0)","v":0}]
[null,"14:30:00",{"$f":"IFERROR(INDEX(قائمة_الصفوف[],MATCH(SUMPRODUCT((قائمة_الصفوف[اليوم]=جدول_الفصل_الدراسي[[#Headers],[الأحد]])*(ROUNDDOWN($B30,10)>=ROUNDDOWN(قائمة_الصفوف[وقت البدء],10))*($B30<=قائمة_الصفوف[وقت الانتهاء]),قائمة_الصفوف[فريدة]),قائمة_الصفوف[فريدة],0),2),0)","v":0},{"$f":"IFERROR(INDEX(قائمة_الصفوف[],MATCH(SUMPRODUCT((قائمة_الصفوف[اليوم]=جدول_الفصل_الدراسي[[#Headers],[الاثنين]])*(ROUNDDOWN($B30,10)>=ROUNDDOWN(قائمة_الصفوف[وقت البدء],10))*($B30<=قائمة_الصفوف[وقت الانتهاء]),قائمة_الصفوف[فريدة]),قائمة_الصفوف[فريدة],0),2),0)","v":0},{"$f":"IFERROR(INDEX(قائمة_الصفوف[],MATCH(SUMPRODUCT((قائمة_الصفوف[اليوم]=جدول_الفصل_الدراسي[[#Headers],[الثلاثاء]])*(ROUNDDOWN($B30,10)>=ROUNDDOWN(قائمة_الصفوف[وقت البدء],10))*($B30<=قائمة_الصفوف[وقت الانتهاء]),قائمة_الصفوف[فريدة]),قائمة_الصفوف[فريدة],0),2),0)","v":0},{"$f":"IFERROR(INDEX(قائمة_الصفوف[],MATCH(SUMPRODUCT((قائمة_الصفوف[اليوم]=جدول_الفصل_الدراسي[[#Headers],[الأربعاء]])*(ROUNDDOWN($B30,10)>=ROUNDDOWN(قائمة_الصفوف[وقت البدء],10))*($B30<=قائمة_الصفوف[وقت الانتهاء]),قائمة_الصفوف[فريدة]),قائمة_الصفوف[فريدة],0),2),0)","v":0},{"$f":"IFERROR(INDEX(قائمة_الصفوف[],MATCH(SUMPRODUCT((قائمة_الصفوف[اليوم]=جدول_الفصل_الدراسي[[#Headers],[الخميس]])*(ROUNDDOWN($B30,10)>=ROUNDDOWN(قائمة_الصفوف[وقت البدء],10))*($B30<=قائمة_الصفوف[وقت الانتهاء]),قائمة_الصفوف[فريدة]),قائمة_الصفوف[فريدة],0),2),0)","v":0},{"$f":"IFERROR(INDEX(قائمة_الصفوف[],MATCH(SUMPRODUCT((قائمة_الصفوف[اليوم]=جدول_الفصل_الدراسي[[#Headers],[الجمعة]])*(ROUNDDOWN($B30,10)>=ROUNDDOWN(قائمة_الصفوف[وقت البدء],10))*($B30<=قائمة_الصفوف[وقت الانتهاء]),قائمة_الصفوف[فريدة]),قائمة_الصفوف[فريدة],0),2),0)","v":0},{"$f":"IFERROR(INDEX(قائمة_الصفوف[],MATCH(SUMPRODUCT((قائمة_الصفوف[اليوم]=جدول_الفصل_الدراسي[[#Headers],[السبت]])*(ROUNDDOWN($B30,10)>=ROUNDDOWN(قائمة_الصفوف[وقت البدء],10))*($B30<=قائمة_الصفوف[وقت الانتهاء]),قائمة_الصفوف[فريدة]),قائمة_الصفوف[فريدة],0),2),0)","v":0}]
[null,"14:45:00",{"$f":"IFERROR(INDEX(قائمة_الصفوف[],MATCH(SUMPRODUCT((قائمة_الصفوف[اليوم]=جدول_الفصل_الدراسي[[#Headers],[الأحد]])*(ROUNDDOWN($B31,10)>=ROUNDDOWN(قائمة_الصفوف[وقت البدء],10))*($B31<=قائمة_الصفوف[وقت الانتهاء]),قائمة_الصفوف[فريدة]),قائمة_الصفوف[فريدة],0),2),0)","v":0},{"$f":"IFERROR(INDEX(قائمة_الصفوف[],MATCH(SUMPRODUCT((قائمة_الصفوف[اليوم]=جدول_الفصل_الدراسي[[#Headers],[الاثنين]])*(ROUNDDOWN($B31,10)>=ROUNDDOWN(قائمة_الصفوف[وقت البدء],10))*($B31<=قائمة_الصفوف[وقت الانتهاء]),قائمة_الصفوف[فريدة]),قائمة_الصفوف[فريدة],0),2),0)","v":0},{"$f":"IFERROR(INDEX(قائمة_الصفوف[],MATCH(SUMPRODUCT((قائمة_الصفوف[اليوم]=جدول_الفصل_الدراسي[[#Headers],[الثلاثاء]])*(ROUNDDOWN($B31,10)>=ROUNDDOWN(قائمة_الصفوف[وقت البدء],10))*($B31<=قائمة_الصفوف[وقت الانتهاء]),قائمة_الصفوف[فريدة]),قائمة_الصفوف[فريدة],0),2),0)","v":0},{"$f":"IFERROR(INDEX(قائمة_الصفوف[],MATCH(SUMPRODUCT((قائمة_الصفوف[اليوم]=جدول_الفصل_الدراسي[[#Headers],[الأربعاء]])*(ROUNDDOWN($B31,10)>=ROUNDDOWN(قائمة_الصفوف[وقت البدء],10))*($B31<=قائمة_الصفوف[وقت الانتهاء]),قائمة_الصفوف[فريدة]),قائمة_الصفوف[فريدة],0),2),0)","v":0},{"$f":"IFERROR(INDEX(قائمة_الصفوف[],MATCH(SUMPRODUCT((قائمة_الصفوف[اليوم]=جدول_الفصل_الدراسي[[#Headers],[الخميس]])*(ROUNDDOWN($B31,10)>=ROUNDDOWN(قائمة_الصفوف[وقت البدء],10))*($B31<=قائمة_الصفوف[وقت الانتهاء]),قائمة_الصفوف[فريدة]),قائمة_الصفوف[فريدة],0),2),0)","v":0},{"$f":"IFERROR(INDEX(قائمة_الصفوف[],MATCH(SUMPRODUCT((قائمة_الصفوف[اليوم]=جدول_الفصل_الدراسي[[#Headers],[الجمعة]])*(ROUNDDOWN($B31,10)>=ROUNDDOWN(قائمة_الصفوف[وقت البدء],10))*($B31<=قائمة_الصفوف[وقت الانتهاء]),قائمة_الصفوف[فريدة]),قائمة_الصفوف[فريدة],0),2),0)","v":0},{"$f":"IFERROR(INDEX(قائمة_الصفوف[],MATCH(SUMPRODUCT((قائمة_الصفوف[اليوم]=جدول_الفصل_الدراسي[[#Headers],[السبت]])*(ROUNDDOWN($B31,10)>=ROUNDDOWN(قائمة_الصفوف[وقت البدء],10))*($B31<=قائمة_الصفوف[وقت الانتهاء]),قائمة_الصفوف[فريدة]),قائمة_الصفوف[فريدة],0),2),0)","v":0}]
[null,"15:00:00",{"$f":"IFERROR(INDEX(قائمة_الصفوف[],MATCH(SUMPRODUCT((قائمة_الصفوف[اليوم]=جدول_الفصل_الدراسي[[#Headers],[الأحد]])*(ROUNDDOWN($B32,10)>=ROUNDDOWN(قائمة_الصفوف[وقت البدء],10))*($B32<=قائمة_الصفوف[وقت الانتهاء]),قائمة_الصفوف[فريدة]),قائمة_الصفوف[فريدة],0),2),0)","v":0},{"$f":"IFERROR(INDEX(قائمة_الصفوف[],MATCH(SUMPRODUCT((قائمة_الصفوف[اليوم]=جدول_الفصل_الدراسي[[#Headers],[الاثنين]])*(ROUNDDOWN($B32,10)>=ROUNDDOWN(قائمة_الصفوف[وقت البدء],10))*($B32<=قائمة_الصفوف[وقت الانتهاء]),قائمة_الصفوف[فريدة]),قائمة_الصفوف[فريدة],0),2),0)","v":0},{"$f":"IFERROR(INDEX(قائمة_الصفوف[],MATCH(SUMPRODUCT((قائمة_الصفوف[اليوم]=جدول_الفصل_الدراسي[[#Headers],[الثلاثاء]])*(ROUNDDOWN($B32,10)>=ROUNDDOWN(قائمة_الصفوف[وقت البدء],10))*($B32<=قائمة_الصفوف[وقت الانتهاء]),قائمة_الصفوف[فريدة]),قائمة_الصفوف[فريدة],0),2),0)","v":0},{"$f":"IFERROR(INDEX(قائمة_الصفوف[],MATCH(SUMPRODUCT((قائمة_الصفوف[اليوم]=جدول_الفصل_الدراسي[[#Headers],[الأربعاء]])*(ROUNDDOWN($B32,10)>=ROUNDDOWN(قائمة_الصفوف[وقت البدء],10))*($B32<=قائمة_الصفوف[وقت الانتهاء]),قائمة_الصفوف[فريدة]),قائمة_الصفوف[فريدة],0),2),0)","v":0},{"$f":"IFERROR(INDEX(قائمة_الصفوف[],MATCH(SUMPRODUCT((قائمة_الصفوف[اليوم]=جدول_الفصل_الدراسي[[#Headers],[الخميس]])*(ROUNDDOWN($B32,10)>=ROUNDDOWN(قائمة_الصفوف[وقت البدء],10))*($B32<=قائمة_الصفوف[وقت الانتهاء]),قائمة_الصفوف[فريدة]),قائمة_الصفوف[فريدة],0),2),0)","v":0},{"$f":"IFERROR(INDEX(قائمة_الصفوف[],MATCH(SUMPRODUCT((قائمة_الصفوف[اليوم]=جدول_الفصل_الدراسي[[#Headers],[الجمعة]])*(ROUNDDOWN($B32,10)>=ROUNDDOWN(قائمة_الصفوف[وقت البدء],10))*($B32<=قائمة_الصفوف[وقت الانتهاء]),قائمة_الصفوف[فريدة]),قائمة_الصفوف[فريدة],0),2),0)","v":0},{"$f":"IFERROR(INDEX(قائمة_الصفوف[],MATCH(SUMPRODUCT((قائمة_الصفوف[اليوم]=جدول_الفصل_الدراسي[[#Headers],[السبت]])*(ROUNDDOWN($B32,10)>=ROUNDDOWN(قائمة_الصفوف[وقت البدء],10))*($B32<=قائمة_الصفوف[وقت الانتهاء]),قائمة_الصفوف[فريدة]),قائمة_الصفوف[فريدة],0),2),0)","v":0}]
[null,"15:15:00",{"$f":"IFERROR(INDEX(قائمة_الصفوف[],MATCH(SUMPRODUCT((قائمة_الصفوف[اليوم]=جدول_الفصل_الدراسي[[#Headers],[الأحد]])*(ROUNDDOWN($B33,10)>=ROUNDDOWN(قائمة_الصفوف[وقت البدء],10))*($B33<=قائمة_الصفوف[وقت الانتهاء]),قائمة_الصفوف[فريدة]),قائمة_الصفوف[فريدة],0),2),0)","v":0},{"$f":"IFERROR(INDEX(قائمة_الصفوف[],MATCH(SUMPRODUCT((قائمة_الصفوف[اليوم]=جدول_الفصل_الدراسي[[#Headers],[الاثنين]])*(ROUNDDOWN($B33,10)>=ROUNDDOWN(قائمة_الصفوف[وقت البدء],10))*($B33<=قائمة_الصفوف[وقت الانتهاء]),قائمة_الصفوف[فريدة]),قائمة_الصفوف[فريدة],0),2),0)","v":0},{"$f":"IFERROR(INDEX(قائمة_الصفوف[],MATCH(SUMPRODUCT((قائمة_الصفوف[اليوم]=جدول_الفصل_الدراسي[[#Headers],[الثلاثاء]])*(ROUNDDOWN($B33,10)>=ROUNDDOWN(قائمة_الصفوف[وقت البدء],10))*($B33<=قائمة_الصفوف[وقت الانتهاء]),قائمة_الصفوف[فريدة]),قائمة_الصفوف[فريدة],0),2),0)","v":0},{"$f":"IFERROR(INDEX(قائمة_الصفوف[],MATCH(SUMPRODUCT((قائمة_الصفوف[اليوم]=جدول_الفصل_الدراسي[[#Headers],[الأربعاء]])*(ROUNDDOWN($B33,10)>=ROUNDDOWN(قائمة_الصفوف[وقت البدء],10))*($B33<=قائمة_الصفوف[وقت الانتهاء]),قائمة_الصفوف[فريدة]),قائمة_الصفوف[فريدة],0),2),0)","v":0},{"$f":"IFERROR(INDEX(قائمة_الصفوف[],MATCH(SUMPRODUCT((قائمة_الصفوف[اليوم]=جدول_الفصل_الدراسي[[#Headers],[الخميس]])*(ROUNDDOWN($B33,10)>=ROUNDDOWN(قائمة_الصفوف[وقت البدء],10))*($B33<=قائمة_الصفوف[وقت الانتهاء]),قائمة_الصفوف[فريدة]),قائمة_الصفوف[فريدة],0),2),0)","v":0},{"$f":"IFERROR(INDEX(قائمة_الصفوف[],MATCH(SUMPRODUCT((قائمة_الصفوف[اليوم]=جدول_الفصل_الدراسي[[#Headers],[الجمعة]])*(ROUNDDOWN($B33,10)>=ROUNDDOWN(قائمة_الصفوف[وقت البدء],10))*($B33<=قائمة_الصفوف[وقت الانتهاء]),قائمة_الصفوف[فريدة]),قائمة_الصفوف[فريدة],0),2),0)","v":0},{"$f":"IFERROR(INDEX(قائمة_الصفوف[],MATCH(SUMPRODUCT((قائمة_الصفوف[اليوم]=جدول_الفصل_الدراسي[[#Headers],[السبت]])*(ROUNDDOWN($B33,10)>=ROUNDDOWN(قائمة_الصفوف[وقت البدء],10))*($B33<=قائمة_الصفوف[وقت الانتهاء]),قائمة_الصفوف[فريدة]),قائمة_الصفوف[فريدة],0),2),0)","v":0}]
[null,"15:30:00",{"$f":"IFERROR(INDEX(قائمة_الصفوف[],MATCH(SUMPRODUCT((قائمة_الصفوف[اليوم]=جدول_الفصل_الدراسي[[#Headers],[الأحد]])*(ROUNDDOWN($B34,10)>=ROUNDDOWN(قائمة_الصفوف[وقت البدء],10))*($B34<=قائمة_الصفوف[وقت الانتهاء]),قائمة_الصفوف[فريدة]),قائمة_الصفوف[فريدة],0),2),0)","v":0},{"$f":"IFERROR(INDEX(قائمة_الصفوف[],MATCH(SUMPRODUCT((قائمة_الصفوف[اليوم]=جدول_الفصل_الدراسي[[#Headers],[الاثنين]])*(ROUNDDOWN($B34,10)>=ROUNDDOWN(قائمة_الصفوف[وقت البدء],10))*($B34<=قائمة_الصفوف[وقت الانتهاء]),قائمة_الصفوف[فريدة]),قائمة_الصفوف[فريدة],0),2),0)","v":0},{"$f":"IFERROR(INDEX(قائمة_الصفوف[],MATCH(SUMPRODUCT((قائمة_الصفوف[اليوم]=جدول_الفصل_الدراسي[[#Headers],[الثلاثاء]])*(ROUNDDOWN($B34,10)>=ROUNDDOWN(قائمة_الصفوف[وقت البدء],10))*($B34<=قائمة_الصفوف[وقت الانتهاء]),قائمة_الصفوف[فريدة]),قائمة_الصفوف[فريدة],0),2),0)","v":0},{"$f":"IFERROR(INDEX(قائمة_الصفوف[],MATCH(SUMPRODUCT((قائمة_الصفوف[اليوم]=جدول_الفصل_الدراسي[[#Headers],[الأربعاء]])*(ROUNDDOWN($B34,10)>=ROUNDDOWN(قائمة_الصفوف[وقت البدء],10))*($B34<=قائمة_الصفوف[وقت الانتهاء]),قائمة_الصفوف[فريدة]),قائمة_الصفوف[فريدة],0),2),0)","v":0},{"$f":"IFERROR(INDEX(قائمة_الصفوف[],MATCH(SUMPRODUCT((قائمة_الصفوف[اليوم]=جدول_الفصل_الدراسي[[#Headers],[الخميس]])*(ROUNDDOWN($B34,10)>=ROUNDDOWN(قائمة_الصفوف[وقت البدء],10))*($B34<=قائمة_الصفوف[وقت الانتهاء]),قائمة_الصفوف[فريدة]),قائمة_الصفوف[فريدة],0),2),0)","v":0},{"$f":"IFERROR(INDEX(قائمة_الصفوف[],MATCH(SUMPRODUCT((قائمة_الصفوف[اليوم]=جدول_الفصل_الدراسي[[#Headers],[الجمعة]])*(ROUNDDOWN($B34,10)>=ROUNDDOWN(قائمة_الصفوف[وقت البدء],10))*($B34<=قائمة_الصفوف[وقت الانتهاء]),قائمة_الصفوف[فريدة]),قائمة_الصفوف[فريدة],0),2),0)","v":0},{"$f":"IFERROR(INDEX(قائمة_الصفوف[],MATCH(SUMPRODUCT((قائمة_الصفوف[اليوم]=جدول_الفصل_الدراسي[[#Headers],[السبت]])*(ROUNDDOWN($B34,10)>=ROUNDDOWN(قائمة_الصفوف[وقت البدء],10))*($B34<=قائمة_الصفوف[وقت الانتهاء]),قائمة_الصفوف[فريدة]),قائمة_الصفوف[فريدة],0),2),0)","v":0}]
[null,"15:45:00",{"$f":"IFERROR(INDEX(قائمة_الصفوف[],MATCH(SUMPRODUCT((قائمة_الصفوف[اليوم]=جدول_الفصل_الدراسي[[#Headers],[الأحد]])*(ROUNDDOWN($B35,10)>=ROUNDDOWN(قائمة_الصفوف[وقت البدء],10))*($B35<=قائمة_الصفوف[وقت الانتهاء]),قائمة_الصفوف[فريدة]),قائمة_الصفوف[فريدة],0),2),0)","v":0},{"$f":"IFERROR(INDEX(قائمة_الصفوف[],MATCH(SUMPRODUCT((قائمة_الصفوف[اليوم]=جدول_الفصل_الدراسي[[#Headers],[الاثنين]])*(ROUNDDOWN($B35,10)>=ROUNDDOWN(قائمة_الصفوف[وقت البدء],10))*($B35<=قائمة_الصفوف[وقت الانتهاء]),قائمة_الصفوف[فريدة]),قائمة_الصفوف[فريدة],0),2),0)","v":0},{"$f":"IFERROR(INDEX(قائمة_الصفوف[],MATCH(SUMPRODUCT((قائمة_الصفوف[اليوم]=جدول_الفصل_الدراسي[[#Headers],[الثلاثاء]])*(ROUNDDOWN($B35,10)>=ROUNDDOWN(قائمة_الصفوف[وقت البدء],10))*($B35<=قائمة_الصفوف[وقت الانتهاء]),قائمة_الصفوف[فريدة]),قائمة_الصفوف[فريدة],0),2),0)","v":0},{"$f":"IFERROR(INDEX(قائمة_الصفوف[],MATCH(SUMPRODUCT((قائمة_الصفوف[اليوم]=جدول_الفصل_الدراسي[[#Headers],[الأربعاء]])*(ROUNDDOWN($B35,10)>=ROUNDDOWN(قائمة_الصفوف[وقت البدء],10))*($B35<=قائمة_الصفوف[وقت الانتهاء]),قائمة_الصفوف[فريدة]),قائمة_الصفوف[فريدة],0),2),0)","v":0},{"$f":"IFERROR(INDEX(قائمة_الصفوف[],MATCH(SUMPRODUCT((قائمة_الصفوف[اليوم]=جدول_الفصل_الدراسي[[#Headers],[الخميس]])*(ROUNDDOWN($B35,10)>=ROUNDDOWN(قائمة_الصفوف[وقت البدء],10))*($B35<=قائمة_الصفوف[وقت الانتهاء]),قائمة_الصفوف[فريدة]),قائمة_الصفوف[فريدة],0),2),0)","v":0},{"$f":"IFERROR(INDEX(قائمة_الصفوف[],MATCH(SUMPRODUCT((قائمة_الصفوف[اليوم]=جدول_الفصل_الدراسي[[#Headers],[الجمعة]])*(ROUNDDOWN($B35,10)>=ROUNDDOWN(قائمة_الصفوف[وقت البدء],10))*($B35<=قائمة_الصفوف[وقت الانتهاء]),قائمة_الصفوف[فريدة]),قائمة_الصفوف[فريدة],0),2),0)","v":0},{"$f":"IFERROR(INDEX(قائمة_الصفوف[],MATCH(SUMPRODUCT((قائمة_الصفوف[اليوم]=جدول_الفصل_الدراسي[[#Headers],[السبت]])*(ROUNDDOWN($B35,10)>=ROUNDDOWN(قائمة_الصفوف[وقت البدء],10))*($B35<=قائمة_الصفوف[وقت الانتهاء]),قائمة_الصفوف[فريدة]),قائمة_الصفوف[فريدة],0),2),0)","v":0}]
[null,"16:00:00",{"$f":"IFERROR(INDEX(قائمة_الصفوف[],MATCH(SUMPRODUCT((قائمة_الصفوف[اليوم]=جدول_الفصل_الدراسي[[#Headers],[الأحد]])*(ROUNDDOWN($B36,10)>=ROUNDDOWN(قائمة_الصفوف[وقت البدء],10))*($B36<=قائمة_الصفوف[وقت الانتهاء]),قائمة_الصفوف[فريدة]),قائمة_الصفوف[فريدة],0),2),0)","v":0},{"$f":"IFERROR(INDEX(قائمة_الصفوف[],MATCH(SUMPRODUCT((قائمة_الصفوف[اليوم]=جدول_الفصل_الدراسي[[#Headers],[الاثنين]])*(ROUNDDOWN($B36,10)>=ROUNDDOWN(قائمة_الصفوف[وقت البدء],10))*($B36<=قائمة_الصفوف[وقت الانتهاء]),قائمة_الصفوف[فريدة]),قائمة_الصفوف[فريدة],0),2),0)","v":"خطابة عامة-111"},{"$f":"IFERROR(INDEX(قائمة_الصفوف[],MATCH(SUMPRODUCT((قائمة_الصفوف[اليوم]=جدول_الفصل_الدراسي[[#Headers],[الثلاثاء]])*(ROUNDDOWN($B36,10)>=ROUNDDOWN(قائمة_الصفوف[وقت البدء],10))*($B36<=قائمة_الصفوف[وقت الانتهاء]),قائمة_الصفوف[فريدة]),قائمة_الصفوف[فريدة],0),2),0)","v":0},{"$f":"IFERROR(INDEX(قائمة_الصفوف[],MATCH(SUMPRODUCT((قائمة_الصفوف[اليوم]=جدول_الفصل_الدراسي[[#Headers],[الأربعاء]])*(ROUNDDOWN($B36,10)>=ROUNDDOWN(قائمة_الصفوف[وقت البدء],10))*($B36<=قائمة_الصفوف[وقت الانتهاء]),قائمة_الصفوف[فريدة]),قائمة_الصفوف[فريدة],0),2),0)","v":0},{"$f":"IFERROR(INDEX(قائمة_الصفوف[],MATCH(SUMPRODUCT((قائمة_الصفوف[اليوم]=جدول_الفصل_الدراسي[[#Headers],[الخميس]])*(ROUNDDOWN($B36,10)>=ROUNDDOWN(قائمة_الصفوف[وقت البدء],10))*($B36<=قائمة_الصفوف[وقت الانتهاء]),قائمة_الصفوف[فريدة]),قائمة_الصفوف[فريدة],0),2),0)","v":0},{"$f":"IFERROR(INDEX(قائمة_الصفوف[],MATCH(SUMPRODUCT((قائمة_الصفوف[اليوم]=جدول_الفصل_الدراسي[[#Headers],[الجمعة]])*(ROUNDDOWN($B36,10)>=ROUNDDOWN(قائمة_الصفوف[وقت البدء],10))*($B36<=قائمة_الصفوف[وقت الانتهاء]),قائمة_الصفوف[فريدة]),قائمة_الصفوف[فريدة],0),2),0)","v":0},{"$f":"IFERROR(INDEX(قائمة_الصفوف[],MATCH(SUMPRODUCT((قائمة_الصفوف[اليوم]=جدول_الفصل_الدراسي[[#Headers],[السبت]])*(ROUNDDOWN($B36,10)>=ROUNDDOWN(قائمة_الصفوف[وقت البدء],10))*($B36<=قائمة_الصفوف[وقت الانتهاء]),قائمة_الصفوف[فريدة]),قائمة_الصفوف[فريدة],0),2),0)","v":0}]
[null,{"$f":"B36+الزيادة","v":"16:15:00"},{"$f":"IFERROR(INDEX(قائمة_الصفوف[],MATCH(SUMPRODUCT((قائمة_الصفوف[اليوم]=جدول_الفصل_الدراسي[[#Headers],[الأحد]])*(ROUNDDOWN($B37,10)>=ROUNDDOWN(قائمة_الصفوف[وقت البدء],10))*($B37<=قائمة_الصفوف[وقت الانتهاء]),قائمة_الصفوف[فريدة]),قائمة_الصفوف[فريدة],0),2),0)","v":0},{"$f":"IFERROR(INDEX(قائمة_الصفوف[],MATCH(SUMPRODUCT((قائمة_الصفوف[اليوم]=جدول_الفصل_الدراسي[[#Headers],[الاثنين]])*(ROUNDDOWN($B37,10)>=ROUNDDOWN(قائمة_الصفوف[وقت البدء],10))*($B37<=قائمة_الصفوف[وقت الانتهاء]),قائمة_الصفوف[فريدة]),قائمة_الصفوف[فريدة],0),2),0)","v":"خطابة عامة-111"},{"$f":"IFERROR(INDEX(قائمة_الصفوف[],MATCH(SUMPRODUCT((قائمة_الصفوف[اليوم]=جدول_الفصل_الدراسي[[#Headers],[الثلاثاء]])*(ROUNDDOWN($B37,10)>=ROUNDDOWN(قائمة_الصفوف[وقت البدء],10))*($B37<=قائمة_الصفوف[وقت الانتهاء]),قائمة_الصفوف[فريدة]),قائمة_الصفوف[فريدة],0),2),0)","v":0},{"$f":"IFERROR(INDEX(قائمة_الصفوف[],MATCH(SUMPRODUCT((قائمة_الصفوف[اليوم]=جدول_الفصل_الدراسي[[#Headers],[الأربعاء]])*(ROUNDDOWN($B37,10)>=ROUNDDOWN(قائمة_الصفوف[وقت البدء],10))*($B37<=قائمة_الصفوف[وقت الانتهاء]),قائمة_الصفوف[فريدة]),قائمة_الصفوف[فريدة],0),2),0)","v":0},{"$f":"IFERROR(INDEX(قائمة_الصفوف[],MATCH(SUMPRODUCT((قائمة_الصفوف[اليوم]=جدول_الفصل_الدراسي[[#Headers],[الخميس]])*(ROUNDDOWN($B37,10)>=ROUNDDOWN(قائمة_الصفوف[وقت البدء],10))*($B37<=قائمة_الصفوف[وقت الانتهاء]),قائمة_الصفوف[فريدة]),قائمة_الصفوف[فريدة],0),2),0)","v":0},{"$f":"IFERROR(INDEX(قائمة_الصفوف[],MATCH(SUMPRODUCT((قائمة_الصفوف[اليوم]=جدول_الفصل_الدراسي[[#Headers],[الجمعة]])*(ROUNDDOWN($B37,10)>=ROUNDDOWN(قائمة_الصفوف[وقت البدء],10))*($B37<=قائمة_الصفوف[وقت الانتهاء]),قائمة_الصفوف[فريدة]),قائمة_الصفوف[فريدة],0),2),0)","v":0},{"$f":"IFERROR(INDEX(قائمة_الصفوف[],MATCH(SUMPRODUCT((قائمة_الصفوف[اليوم]=جدول_الفصل_الدراسي[[#Headers],[السبت]])*(ROUNDDOWN($B37,10)>=ROUNDDOWN(قائمة_الصفوف[وقت البدء],10))*($B37<=قائمة_الصفوف[وقت الانتهاء]),قائمة_الصفوف[فريدة]),قائمة_الصفوف[فريدة],0),2),0)","v":0}]
[null,"16:30:00",{"$f":"IFERROR(INDEX(قائمة_الصفوف[],MATCH(SUMPRODUCT((قائمة_الصفوف[اليوم]=جدول_الفصل_الدراسي[[#Headers],[الأحد]])*(ROUNDDOWN($B38,10)>=ROUNDDOWN(قائمة_الصفوف[وقت البدء],10))*($B38<=قائمة_الصفوف[وقت الانتهاء]),قائمة_الصفوف[فريدة]),قائمة_الصفوف[فريدة],0),2),0)","v":0},{"$f":"IFERROR(INDEX(قائمة_الصفوف[],MATCH(SUMPRODUCT((قائمة_الصفوف[اليوم]=جدول_الفصل_الدراسي[[#Headers],[الاثنين]])*(ROUNDDOWN($B38,10)>=ROUNDDOWN(قائمة_الصفوف[وقت البدء],10))*($B38<=قائمة_الصفوف[وقت الانتهاء]),قائمة_الصفوف[فريدة]),قائمة_الصفوف[فريدة],0),2),0)","v":"خطابة عامة-111"},{"$f":"IFERROR(INDEX(قائمة_الصفوف[],MATCH(SUMPRODUCT((قائمة_الصفوف[اليوم]=جدول_الفصل_الدراسي[[#Headers],[الثلاثاء]])*(ROUNDDOWN($B38,10)>=ROUNDDOWN(قائمة_الصفوف[وقت البدء],10))*($B38<=قائمة_الصفوف[وقت الانتهاء]),قائمة_الصفوف[فريدة]),قائمة_الصفوف[فريدة],0),2),0)","v":0},{"$f":"IFERROR(INDEX(قائمة_الصفوف[],MATCH(SUMPRODUCT((قائمة_الصفوف[اليوم]=جدول_الفصل_الدراسي[[#Headers],[الأربعاء]])*(ROUNDDOWN($B38,10)>=ROUNDDOWN(قائمة_الصفوف[وقت البدء],10))*($B38<=قائمة_الصفوف[وقت الانتهاء]),قائمة_الصفوف[فريدة]),قائمة_الصفوف[فريدة],0),2),0)","v":0},{"$f":"IFERROR(INDEX(قائمة_الصفوف[],MATCH(SUMPRODUCT((قائمة_الصفوف[اليوم]=جدول_الفصل_الدراسي[[#Headers],[الخميس]])*(ROUNDDOWN($B38,10)>=ROUNDDOWN(قائمة_الصفوف[وقت البدء],10))*($B38<=قائمة_الصفوف[وقت الانتهاء]),قائمة_الصفوف[فريدة]),قائمة_الصفوف[فريدة],0),2),0)","v":0},{"$f":"IFERROR(INDEX(قائمة_الصفوف[],MATCH(SUMPRODUCT((قائمة_الصفوف[اليوم]=جدول_الفصل_الدراسي[[#Headers],[الجمعة]])*(ROUNDDOWN($B38,10)>=ROUNDDOWN(قائمة_الصفوف[وقت البدء],10))*($B38<=قائمة_الصفوف[وقت الانتهاء]),قائمة_الصفوف[فريدة]),قائمة_الصفوف[فريدة],0),2),0)","v":0},{"$f":"IFERROR(INDEX(قائمة_الصفوف[],MATCH(SUMPRODUCT((قائمة_الصفوف[اليوم]=جدول_الفصل_الدراسي[[#Headers],[السبت]])*(ROUNDDOWN($B38,10)>=ROUNDDOWN(قائمة_الصفوف[وقت البدء],10))*($B38<=قائمة_الصفوف[وقت الانتهاء]),قائمة_الصفوف[فريدة]),قائمة_الصفوف[فريدة],0),2),0)","v":0}]
[null,"16:45:00",{"$f":"IFERROR(INDEX(قائمة_الصفوف[],MATCH(SUMPRODUCT((قائمة_الصفوف[اليوم]=جدول_الفصل_الدراسي[[#Headers],[الأحد]])*(ROUNDDOWN($B39,10)>=ROUNDDOWN(قائمة_الصفوف[وقت البدء],10))*($B39<=قائمة_الصفوف[وقت الانتهاء]),قائمة_الصفوف[فريدة]),قائمة_الصفوف[فريدة],0),2),0)","v":0},{"$f":"IFERROR(INDEX(قائمة_الصفوف[],MATCH(SUMPRODUCT((قائمة_الصفوف[اليوم]=جدول_الفصل_الدراسي[[#Headers],[الاثنين]])*(ROUNDDOWN($B39,10)>=ROUNDDOWN(قائمة_الصفوف[وقت البدء],10))*($B39<=قائمة_الصفوف[وقت الانتهاء]),قائمة_الصفوف[فريدة]),قائمة_الصفوف[فريدة],0),2),0)","v":"خطابة عامة-111"},{"$f":"IFERROR(INDEX(قائمة_الصفوف[],MATCH(SUMPRODUCT((قائمة_الصفوف[اليوم]=جدول_الفصل_الدراسي[[#Headers],[الثلاثاء]])*(ROUNDDOWN($B39,10)>=ROUNDDOWN(قائمة_الصفوف[وقت البدء],10))*($B39<=قائمة_الصفوف[وقت الانتهاء]),قائمة_الصفوف[فريدة]),قائمة_الصفوف[فريدة],0),2),0)","v":0},{"$f":"IFERROR(INDEX(قائمة_الصفوف[],MATCH(SUMPRODUCT((قائمة_الصفوف[اليوم]=جدول_الفصل_الدراسي[[#Headers],[الأربعاء]])*(ROUNDDOWN($B39,10)>=ROUNDDOWN(قائمة_الصفوف[وقت البدء],10))*($B39<=قائمة_الصفوف[وقت الانتهاء]),قائمة_الصفوف[فريدة]),قائمة_الصفوف[فريدة],0),2),0)","v":0},{"$f":"IFERROR(INDEX(قائمة_الصفوف[],MATCH(SUMPRODUCT((قائمة_الصفوف[اليوم]=جدول_الفصل_الدراسي[[#Headers],[الخميس]])*(ROUNDDOWN($B39,10)>=ROUNDDOWN(قائمة_الصفوف[وقت البدء],10))*($B39<=قائمة_الصفوف[وقت الانتهاء]),قائمة_الصفوف[فريدة]),قائمة_الصفوف[فريدة],0),2),0)","v":0},{"$f":"IFERROR(INDEX(قائمة_الصفوف[],MATCH(SUMPRODUCT((قائمة_الصفوف[اليوم]=جدول_الفصل_الدراسي[[#Headers],[الجمعة]])*(ROUNDDOWN($B39,10)>=ROUNDDOWN(قائمة_الصفوف[وقت البدء],10))*($B39<=قائمة_الصفوف[وقت الانتهاء]),قائمة_الصفوف[فريدة]),قائمة_الصفوف[فريدة],0),2),0)","v":0},{"$f":"IFERROR(INDEX(قائمة_الصفوف[],MATCH(SUMPRODUCT((قائمة_الصفوف[اليوم]=جدول_الفصل_الدراسي[[#Headers],[السبت]])*(ROUNDDOWN($B39,10)>=ROUNDDOWN(قائمة_الصفوف[وقت البدء],10))*($B39<=قائمة_الصفوف[وقت الانتهاء]),قائمة_الصفوف[فريدة]),قائمة_الصفوف[فريدة],0),2),0)","v":0}]
[null,"17:00:00",{"$f":"IFERROR(INDEX(قائمة_الصفوف[],MATCH(SUMPRODUCT((قائمة_الصفوف[اليوم]=جدول_الفصل_الدراسي[[#Headers],[الأحد]])*(ROUNDDOWN($B40,10)>=ROUNDDOWN(قائمة_الصفوف[وقت البدء],10))*($B40<=قائمة_الصفوف[وقت الانتهاء]),قائمة_الصفوف[فريدة]),قائمة_الصفوف[فريدة],0),2),0)","v":0},{"$f":"IFERROR(INDEX(قائمة_الصفوف[],MATCH(SUMPRODUCT((قائمة_الصفوف[اليوم]=جدول_الفصل_الدراسي[[#Headers],[الاثنين]])*(ROUNDDOWN($B40,10)>=ROUNDDOWN(قائمة_الصفوف[وقت البدء],10))*($B40<=قائمة_الصفوف[وقت الانتهاء]),قائمة_الصفوف[فريدة]),قائمة_الصفوف[فريدة],0),2),0)","v":"خطابة عامة-111"},{"$f":"IFERROR(INDEX(قائمة_الصفوف[],MATCH(SUMPRODUCT((قائمة_الصفوف[اليوم]=جدول_الفصل_الدراسي[[#Headers],[الثلاثاء]])*(ROUNDDOWN($B40,10)>=ROUNDDOWN(قائمة_الصفوف[وقت البدء],10))*($B40<=قائمة_الصفوف[وقت الانتهاء]),قائمة_الصفوف[فريدة]),قائمة_الصفوف[فريدة],0),2),0)","v":0},{"$f":"IFERROR(INDEX(قائمة_الصفوف[],MATCH(SUMPRODUCT((قائمة_الصفوف[اليوم]=جدول_الفصل_الدراسي[[#Headers],[الأربعاء]])*(ROUNDDOWN($B40,10)>=ROUNDDOWN(قائمة_الصفوف[وقت البدء],10))*($B40<=قائمة_الصفوف[وقت الانتهاء]),قائمة_الصفوف[فريدة]),قائمة_الصفوف[فريدة],0),2),0)","v":0},{"$f":"IFERROR(INDEX(قائمة_الصفوف[],MATCH(SUMPRODUCT((قائمة_الصفوف[اليوم]=جدول_الفصل_الدراسي[[#Headers],[الخميس]])*(ROUNDDOWN($B40,10)>=ROUNDDOWN(قائمة_الصفوف[وقت البدء],10))*($B40<=قائمة_الصفوف[وقت الانتهاء]),قائمة_الصفوف[فريدة]),قائمة_الصفوف[فريدة],0),2),0)","v":0},{"$f":"IFERROR(INDEX(قائمة_الصفوف[],MATCH(SUMPRODUCT((قائمة_الصفوف[اليوم]=جدول_الفصل_الدراسي[[#Headers],[الجمعة]])*(ROUNDDOWN($B40,10)>=ROUNDDOWN(قائمة_الصفوف[وقت البدء],10))*($B40<=قائمة_الصفوف[وقت الانتهاء]),قائمة_الصفوف[فريدة]),قائمة_الصفوف[فريدة],0),2),0)","v":0},{"$f":"IFERROR(INDEX(قائمة_الصفوف[],MATCH(SUMPRODUCT((قائمة_الصفوف[اليوم]=جدول_الفصل_الدراسي[[#Headers],[السبت]])*(ROUNDDOWN($B40,10)>=ROUNDDOWN(قائمة_الصفوف[وقت البدء],10))*($B40<=قائمة_الصفوف[وقت الانتهاء]),قائمة_الصفوف[فريدة]),قائمة_الصفوف[فريدة],0),2),0)","v":0}]
[null,"17:15:00",{"$f":"IFERROR(INDEX(قائمة_الصفوف[],MATCH(SUMPRODUCT((قائمة_الصفوف[اليوم]=جدول_الفصل_الدراسي[[#Headers],[الأحد]])*(ROUNDDOWN($B41,10)>=ROUNDDOWN(قائمة_الصفوف[وقت البدء],10))*($B41<=قائمة_الصفوف[وقت الانتهاء]),قائمة_الصفوف[فريدة]),قائمة_الصفوف[فريدة],0),2),0)","v":0},{"$f":"IFERROR(INDEX(قائمة_الصفوف[],MATCH(SUMPRODUCT((قائمة_الصفوف[اليوم]=جدول_الفصل_الدراسي[[#Headers],[الاثنين]])*(ROUNDDOWN($B41,10)>=ROUNDDOWN(قائمة_الصفوف[وقت البدء],10))*($B41<=قائمة_الصفوف[وقت الانتهاء]),قائمة_الصفوف[فريدة]),قائمة_الصفوف[فريدة],0),2),0)","v":0},{"$f":"IFERROR(INDEX(قائمة_الصفوف[],MATCH(SUMPRODUCT((قائمة_الصفوف[اليوم]=جدول_الفصل_الدراسي[[#Headers],[الثلاثاء]])*(ROUNDDOWN($B41,10)>=ROUNDDOWN(قائمة_الصفوف[وقت البدء],10))*($B41<=قائمة_الصفوف[وقت الانتهاء]),قائمة_الصفوف[فريدة]),قائمة_الصفوف[فريدة],0),2),0)","v":0},{"$f":"IFERROR(INDEX(قائمة_الصفوف[],MATCH(SUMPRODUCT((قائمة_الصفوف[اليوم]=جدول_الفصل_الدراسي[[#Headers],[الأربعاء]])*(ROUNDDOWN($B41,10)>=ROUNDDOWN(قائمة_الصفوف[وقت البدء],10))*($B41<=قائمة_الصفوف[وقت الانتهاء]),قائمة_الصفوف[فريدة]),قائمة_الصفوف[فريدة],0),2),0)","v":0},{"$f":"IFERROR(INDEX(قائمة_الصفوف[],MATCH(SUMPRODUCT((قائمة_الصفوف[اليوم]=جدول_الفصل_الدراسي[[#Headers],[الخميس]])*(ROUNDDOWN($B41,10)>=ROUNDDOWN(قائمة_الصفوف[وقت البدء],10))*($B41<=قائمة_الصفوف[وقت الانتهاء]),قائمة_الصفوف[فريدة]),قائمة_الصفوف[فريدة],0),2),0)","v":0},{"$f":"IFERROR(INDEX(قائمة_الصفوف[],MATCH(SUMPRODUCT((قائمة_الصفوف[اليوم]=جدول_الفصل_الدراسي[[#Headers],[الجمعة]])*(ROUNDDOWN($B41,10)>=ROUNDDOWN(قائمة_الصفوف[وقت البدء],10))*($B41<=قائمة_الصفوف[وقت الانتهاء]),قائمة_الصفوف[فريدة]),قائمة_الصفوف[فريدة],0),2),0)","v":0},{"$f":"IFERROR(INDEX(قائمة_الصفوف[],MATCH(SUMPRODUCT((قائمة_الصفوف[اليوم]=جدول_الفصل_الدراسي[[#Headers],[السبت]])*(ROUNDDOWN($B41,10)>=ROUNDDOWN(قائمة_الصفوف[وقت البدء],10))*($B41<=قائمة_الصفوف[وقت الانتهاء]),قائمة_الصفوف[فريدة]),قائمة_الصفوف[فريدة],0),2),0)","v":0}]
[null,{"$f":"B41+الزيادة","v":"17:30:00"},{"$f":"IFERROR(INDEX(قائمة_الصفوف[],MATCH(SUMPRODUCT((قائمة_الصفوف[اليوم]=جدول_الفصل_الدراسي[[#Headers],[الأحد]])*(ROUNDDOWN($B42,10)>=ROUNDDOWN(قائمة_الصفوف[وقت البدء],10))*($B42<=قائمة_الصفوف[وقت الانتهاء]),قائمة_الصفوف[فريدة]),قائمة_الصفوف[فريدة],0),2),0)","v":0},{"$f":"IFERROR(INDEX(قائمة_الصفوف[],MATCH(SUMPRODUCT((قائمة_الصفوف[اليوم]=جدول_الفصل_الدراسي[[#Headers],[الاثنين]])*(ROUNDDOWN($B42,10)>=ROUNDDOWN(قائمة_الصفوف[وقت البدء],10))*($B42<=قائمة_الصفوف[وقت الانتهاء]),قائمة_الصفوف[فريدة]),قائمة_الصفوف[فريدة],0),2),0)","v":0},{"$f":"IFERROR(INDEX(قائمة_الصفوف[],MATCH(SUMPRODUCT((قائمة_الصفوف[اليوم]=جدول_الفصل_الدراسي[[#Headers],[الثلاثاء]])*(ROUNDDOWN($B42,10)>=ROUNDDOWN(قائمة_الصفوف[وقت البدء],10))*($B42<=قائمة_الصفوف[وقت الانتهاء]),قائمة_الصفوف[فريدة]),قائمة_الصفوف[فريدة],0),2),0)","v":0},{"$f":"IFERROR(INDEX(قائمة_الصفوف[],MATCH(SUMPRODUCT((قائمة_الصفوف[اليوم]=جدول_الفصل_الدراسي[[#Headers],[الأربعاء]])*(ROUNDDOWN($B42,10)>=ROUNDDOWN(قائمة_الصفوف[وقت البدء],10))*($B42<=قائمة_الصفوف[وقت الانتهاء]),قائمة_الصفوف[فريدة]),قائمة_الصفوف[فريدة],0),2),0)","v":0},{"$f":"IFERROR(INDEX(قائمة_الصفوف[],MATCH(SUMPRODUCT((قائمة_الصفوف[اليوم]=جدول_الفصل_الدراسي[[#Headers],[الخميس]])*(ROUNDDOWN($B42,10)>=ROUNDDOWN(قائمة_الصفوف[وقت البدء],10))*($B42<=قائمة_الصفوف[وقت الانتهاء]),قائمة_الصفوف[فريدة]),قائمة_الصفوف[فريدة],0),2),0)","v":0},{"$f":"IFERROR(INDEX(قائمة_الصفوف[],MATCH(SUMPRODUCT((قائمة_الصفوف[اليوم]=جدول_الفصل_الدراسي[[#Headers],[الجمعة]])*(ROUNDDOWN($B42,10)>=ROUNDDOWN(قائمة_الصفوف[وقت البدء],10))*($B42<=قائمة_الصفوف[وقت الانتهاء]),قائمة_الصفوف[فريدة]),قائمة_الصفوف[فريدة],0),2),0)","v":0},{"$f":"IFERROR(INDEX(قائمة_الصفوف[],MATCH(SUMPRODUCT((قائمة_الصفوف[اليوم]=جدول_الفصل_الدراسي[[#Headers],[السبت]])*(ROUNDDOWN($B42,10)>=ROUNDDOWN(قائمة_الصفوف[وقت البدء],10))*($B42<=قائمة_الصفوف[وقت الانتهاء]),قائمة_الصفوف[فريدة]),قائمة_الصفوف[فريدة],0),2),0)","v":0}]
[null,"17:45:00",{"$f":"IFERROR(INDEX(قائمة_الصفوف[],MATCH(SUMPRODUCT((قائمة_الصفوف[اليوم]=جدول_الفصل_الدراسي[[#Headers],[الأحد]])*(ROUNDDOWN($B43,10)>=ROUNDDOWN(قائمة_الصفوف[وقت البدء],10))*($B43<=قائمة_الصفوف[وقت الانتهاء]),قائمة_الصفوف[فريدة]),قائمة_الصفوف[فريدة],0),2),0)","v":0},{"$f":"IFERROR(INDEX(قائمة_الصفوف[],MATCH(SUMPRODUCT((قائمة_الصفوف[اليوم]=جدول_الفصل_الدراسي[[#Headers],[الاثنين]])*(ROUNDDOWN($B43,10)>=ROUNDDOWN(قائمة_الصفوف[وقت البدء],10))*($B43<=قائمة_الصفوف[وقت الانتهاء]),قائمة_الصفوف[فريدة]),قائمة_الصفوف[فريدة],0),2),0)","v":0},{"$f":"IFERROR(INDEX(قائمة_الصفوف[],MATCH(SUMPRODUCT((قائمة_الصفوف[اليوم]=جدول_الفصل_الدراسي[[#Headers],[الثلاثاء]])*(ROUNDDOWN($B43,10)>=ROUNDDOWN(قائمة_الصفوف[وقت البدء],10))*($B43<=قائمة_الصفوف[وقت الانتهاء]),قائمة_الصفوف[فريدة]),قائمة_الصفوف[فريدة],0),2),0)","v":0},{"$f":"IFERROR(INDEX(قائمة_الصفوف[],MATCH(SUMPRODUCT((قائمة_الصفوف[اليوم]=جدول_الفصل_الدراسي[[#Headers],[الأربعاء]])*(ROUNDDOWN($B43,10)>=ROUNDDOWN(قائمة_الصفوف[وقت البدء],10))*($B43<=قائمة_الصفوف[وقت الانتهاء]),قائمة_الصفوف[فريدة]),قائمة_الصفوف[فريدة],0),2),0)","v":0},{"$f":"IFERROR(INDEX(قائمة_الصفوف[],MATCH(SUMPRODUCT((قائمة_الصفوف[اليوم]=جدول_الفصل_الدراسي[[#Headers],[الخميس]])*(ROUNDDOWN($B43,10)>=ROUNDDOWN(قائمة_الصفوف[وقت البدء],10))*($B43<=قائمة_الصفوف[وقت الانتهاء]),قائمة_الصفوف[فريدة]),قائمة_الصفوف[فريدة],0),2),0)","v":0},{"$f":"IFERROR(INDEX(قائمة_الصفوف[],MATCH(SUMPRODUCT((قائمة_الصفوف[اليوم]=جدول_الفصل_الدراسي[[#Headers],[الجمعة]])*(ROUNDDOWN($B43,10)>=ROUNDDOWN(قائمة_الصفوف[وقت البدء],10))*($B43<=قائمة_الصفوف[وقت الانتهاء]),قائمة_الصفوف[فريدة]),قائمة_الصفوف[فريدة],0),2),0)","v":0},{"$f":"IFERROR(INDEX(قائمة_الصفوف[],MATCH(SUMPRODUCT((قائمة_الصفوف[اليوم]=جدول_الفصل_الدراسي[[#Headers],[السبت]])*(ROUNDDOWN($B43,10)>=ROUNDDOWN(قائمة_الصفوف[وقت البدء],10))*($B43<=قائمة_الصفوف[وقت الانتهاء]),قائمة_الصفوف[فريدة]),قائمة_الصفوف[فريدة],0),2),0)","v":0}]
[null,"18:00:00",{"$f":"IFERROR(INDEX(قائمة_الصفوف[],MATCH(SUMPRODUCT((قائمة_الصفوف[اليوم]=جدول_الفصل_الدراسي[[#Headers],[الأحد]])*(ROUNDDOWN($B44,10)>=ROUNDDOWN(قائمة_الصفوف[وقت البدء],10))*($B44<=قائمة_الصفوف[وقت الانتهاء]),قائمة_الصفوف[فريدة]),قائمة_الصفوف[فريدة],0),2),0)","v":0},{"$f":"IFERROR(INDEX(قائمة_الصفوف[],MATCH(SUMPRODUCT((قائمة_الصفوف[اليوم]=جدول_الفصل_الدراسي[[#Headers],[الاثنين]])*(ROUNDDOWN($B44,10)>=ROUNDDOWN(قائمة_الصفوف[وقت البدء],10))*($B44<=قائمة_الصفوف[وقت الانتهاء]),قائمة_الصفوف[فريدة]),قائمة_الصفوف[فريدة],0),2),0)","v":0},{"$f":"IFERROR(INDEX(قائمة_الصفوف[],MATCH(SUMPRODUCT((قائمة_الصفوف[اليوم]=جدول_الفصل_الدراسي[[#Headers],[الثلاثاء]])*(ROUNDDOWN($B44,10)>=ROUNDDOWN(قائمة_الصفوف[وقت البدء],10))*($B44<=قائمة_الصفوف[وقت الانتهاء]),قائمة_الصفوف[فريدة]),قائمة_الصفوف[فريدة],0),2),0)","v":0},{"$f":"IFERROR(INDEX(قائمة_الصفوف[],MATCH(SUMPRODUCT((قائمة_الصفوف[اليوم]=جدول_الفصل_الدراسي[[#Headers],[الأربعاء]])*(ROUNDDOWN($B44,10)>=ROUNDDOWN(قائمة_الصفوف[وقت البدء],10))*($B44<=قائمة_الصفوف[وقت الانتهاء]),قائمة_الصفوف[فريدة]),قائمة_الصفوف[فريدة],0),2),0)","v":0},{"$f":"IFERROR(INDEX(قائمة_الصفوف[],MATCH(SUMPRODUCT((قائمة_الصفوف[اليوم]=جدول_الفصل_الدراسي[[#Headers],[الخميس]])*(ROUNDDOWN($B44,10)>=ROUNDDOWN(قائمة_الصفوف[وقت البدء],10))*($B44<=قائمة_الصفوف[وقت الانتهاء]),قائمة_الصفوف[فريدة]),قائمة_الصفوف[فريدة],0),2),0)","v":0},{"$f":"IFERROR(INDEX(قائمة_الصفوف[],MATCH(SUMPRODUCT((قائمة_الصفوف[اليوم]=جدول_الفصل_الدراسي[[#Headers],[الجمعة]])*(ROUNDDOWN($B44,10)>=ROUNDDOWN(قائمة_الصفوف[وقت البدء],10))*($B44<=قائمة_الصفوف[وقت الانتهاء]),قائمة_الصفوف[فريدة]),قائمة_الصفوف[فريدة],0),2),0)","v":0},{"$f":"IFERROR(INDEX(قائمة_الصفوف[],MATCH(SUMPRODUCT((قائمة_الصفوف[اليوم]=جدول_الفصل_الدراسي[[#Headers],[السبت]])*(ROUNDDOWN($B44,10)>=ROUNDDOWN(قائمة_الصفوف[وقت البدء],10))*($B44<=قائمة_الصفوف[وقت الانتهاء]),قائمة_الصفوف[فريدة]),قائمة_الصفوف[فريدة],0),2),0)","v":0}]
[null,"18:15:00",{"$f":"IFERROR(INDEX(قائمة_الصفوف[],MATCH(SUMPRODUCT((قائمة_الصفوف[اليوم]=جدول_الفصل_الدراسي[[#Headers],[الأحد]])*(ROUNDDOWN($B45,10)>=ROUNDDOWN(قائمة_الصفوف[وقت البدء],10))*($B45<=قائمة_الصفوف[وقت الانتهاء]),قائمة_الصفوف[فريدة]),قائمة_الصفوف[فريدة],0),2),0)","v":0},{"$f":"IFERROR(INDEX(قائمة_الصفوف[],MATCH(SUMPRODUCT((قائمة_الصفوف[اليوم]=جدول_الفصل_الدراسي[[#Headers],[الاثنين]])*(ROUNDDOWN($B45,10)>=ROUNDDOWN(قائمة_الصفوف[وقت البدء],10))*($B45<=قائمة_الصفوف[وقت الانتهاء]),قائمة_الصفوف[فريدة]),قائمة_الصفوف[فريدة],0),2),0)","v":0},{"$f":"IFERROR(INDEX(قائمة_الصفوف[],MATCH(SUMPRODUCT((قائمة_الصفوف[اليوم]=جدول_الفصل_الدراسي[[#Headers],[الثلاثاء]])*(ROUNDDOWN($B45,10)>=ROUNDDOWN(قائمة_الصفوف[وقت البدء],10))*($B45<=قائمة_الصفوف[وقت الانتهاء]),قائمة_الصفوف[فريدة]),قائمة_الصفوف[فريدة],0),2),0)","v":0},{"$f":"IFERROR(INDEX(قائمة_الصفوف[],MATCH(SUMPRODUCT((قائمة_الصفوف[اليوم]=جدول_الفصل_الدراسي[[#Headers],[الأربعاء]])*(ROUNDDOWN($B45,10)>=ROUNDDOWN(قائمة_الصفوف[وقت البدء],10))*($B45<=قائمة_الصفوف[وقت الانتهاء]),قائمة_الصفوف[فريدة]),قائمة_الصفوف[فريدة],0),2),0)","v":0},{"$f":"IFERROR(INDEX(قائمة_الصفوف[],MATCH(SUMPRODUCT((قائمة_الصفوف[اليوم]=جدول_الفصل_الدراسي[[#Headers],[الخميس]])*(ROUNDDOWN($B45,10)>=ROUNDDOWN(قائمة_الصفوف[وقت البدء],10))*($B45<=قائمة_الصفوف[وقت الانتهاء]),قائمة_الصفوف[فريدة]),قائمة_الصفوف[فريدة],0),2),0)","v":0},{"$f":"IFERROR(INDEX(قائمة_الصفوف[],MATCH(SUMPRODUCT((قائمة_الصفوف[اليوم]=جدول_الفصل_الدراسي[[#Headers],[الجمعة]])*(ROUNDDOWN($B45,10)>=ROUNDDOWN(قائمة_الصفوف[وقت البدء],10))*($B45<=قائمة_الصفوف[وقت الانتهاء]),قائمة_الصفوف[فريدة]),قائمة_الصفوف[فريدة],0),2),0)","v":0},{"$f":"IFERROR(INDEX(قائمة_الصفوف[],MATCH(SUMPRODUCT((قائمة_الصفوف[اليوم]=جدول_الفصل_الدراسي[[#Headers],[السبت]])*(ROUNDDOWN($B45,10)>=ROUNDDOWN(قائمة_الصفوف[وقت البدء],10))*($B45<=قائمة_الصفوف[وقت الانتهاء]),قائمة_الصفوف[فريدة]),قائمة_الصفوف[فريدة],0),2),0)","v":0}]
[null,"18:30:00",{"$f":"IFERROR(INDEX(قائمة_الصفوف[],MATCH(SUMPRODUCT((قائمة_الصفوف[اليوم]=جدول_الفصل_الدراسي[[#Headers],[الأحد]])*(ROUNDDOWN($B46,10)>=ROUNDDOWN(قائمة_الصفوف[وقت البدء],10))*($B46<=قائمة_الصفوف[وقت الانتهاء]),قائمة_الصفوف[فريدة]),قائمة_الصفوف[فريدة],0),2),0)","v":0},{"$f":"IFERROR(INDEX(قائمة_الصفوف[],MATCH(SUMPRODUCT((قائمة_الصفوف[اليوم]=جدول_الفصل_الدراسي[[#Headers],[الاثنين]])*(ROUNDDOWN($B46,10)>=ROUNDDOWN(قائمة_الصفوف[وقت البدء],10))*($B46<=قائمة_الصفوف[وقت الانتهاء]),قائمة_الصفوف[فريدة]),قائمة_الصفوف[فريدة],0),2),0)","v":0},{"$f":"IFERROR(INDEX(قائمة_الصفوف[],MATCH(SUMPRODUCT((قائمة_الصفوف[اليوم]=جدول_الفصل_الدراسي[[#Headers],[الثلاثاء]])*(ROUNDDOWN($B46,10)>=ROUNDDOWN(قائمة_الصفوف[وقت البدء],10))*($B46<=قائمة_الصفوف[وقت الانتهاء]),قائمة_الصفوف[فريدة]),قائمة_الصفوف[فريدة],0),2),0)","v":0},{"$f":"IFERROR(INDEX(قائمة_الصفوف[],MATCH(SUMPRODUCT((قائمة_الصفوف[اليوم]=جدول_الفصل_الدراسي[[#Headers],[الأربعاء]])*(ROUNDDOWN($B46,10)>=ROUNDDOWN(قائمة_الصفوف[وقت البدء],10))*($B46<=قائمة_الصفوف[وقت الانتهاء]),قائمة_الصفوف[فريدة]),قائمة_الصفوف[فريدة],0),2),0)","v":0},{"$f":"IFERROR(INDEX(قائمة_الصفوف[],MATCH(SUMPRODUCT((قائمة_الصفوف[اليوم]=جدول_الفصل_الدراسي[[#Headers],[الخميس]])*(ROUNDDOWN($B46,10)>=ROUNDDOWN(قائمة_الصفوف[وقت البدء],10))*($B46<=قائمة_الصفوف[وقت الانتهاء]),قائمة_الصفوف[فريدة]),قائمة_الصفوف[فريدة],0),2),0)","v":0},{"$f":"IFERROR(INDEX(قائمة_الصفوف[],MATCH(SUMPRODUCT((قائمة_الصفوف[اليوم]=جدول_الفصل_الدراسي[[#Headers],[الجمعة]])*(ROUNDDOWN($B46,10)>=ROUNDDOWN(قائمة_الصفوف[وقت البدء],10))*($B46<=قائمة_الصفوف[وقت الانتهاء]),قائمة_الصفوف[فريدة]),قائمة_الصفوف[فريدة],0),2),0)","v":0},{"$f":"IFERROR(INDEX(قائمة_الصفوف[],MATCH(SUMPRODUCT((قائمة_الصفوف[اليوم]=جدول_الفصل_الدراسي[[#Headers],[السبت]])*(ROUNDDOWN($B46,10)>=ROUNDDOWN(قائمة_الصفوف[وقت البدء],10))*($B46<=قائمة_الصفوف[وقت الانتهاء]),قائمة_الصفوف[فريدة]),قائمة_الصفوف[فريدة],0),2),0)","v":0}]
[null,"18:45:00",{"$f":"IFERROR(INDEX(قائمة_الصفوف[],MATCH(SUMPRODUCT((قائمة_الصفوف[اليوم]=جدول_الفصل_الدراسي[[#Headers],[الأحد]])*(ROUNDDOWN($B47,10)>=ROUNDDOWN(قائمة_الصفوف[وقت البدء],10))*($B47<=قائمة_الصفوف[وقت الانتهاء]),قائمة_الصفوف[فريدة]),قائمة_الصفوف[فريدة],0),2),0)","v":0},{"$f":"IFERROR(INDEX(قائمة_الصفوف[],MATCH(SUMPRODUCT((قائمة_الصفوف[اليوم]=جدول_الفصل_الدراسي[[#Headers],[الاثنين]])*(ROUNDDOWN($B47,10)>=ROUNDDOWN(قائمة_الصفوف[وقت البدء],10))*($B47<=قائمة_الصفوف[وقت الانتهاء]),قائمة_الصفوف[فريدة]),قائمة_الصفوف[فريدة],0),2),0)","v":0},{"$f":"IFERROR(INDEX(قائمة_الصفوف[],MATCH(SUMPRODUCT((قائمة_الصفوف[اليوم]=جدول_الفصل_الدراسي[[#Headers],[الثلاثاء]])*(ROUNDDOWN($B47,10)>=ROUNDDOWN(قائمة_الصفوف[وقت البدء],10))*($B47<=قائمة_الصفوف[وقت الانتهاء]),قائمة_الصفوف[فريدة]),قائمة_الصفوف[فريدة],0),2),0)","v":0},{"$f":"IFERROR(INDEX(قائمة_الصفوف[],MATCH(SUMPRODUCT((قائمة_الصفوف[اليوم]=جدول_الفصل_الدراسي[[#Headers],[الأربعاء]])*(ROUNDDOWN($B47,10)>=ROUNDDOWN(قائمة_الصفوف[وقت البدء],10))*($B47<=قائمة_الصفوف[وقت الانتهاء]),قائمة_الصفوف[فريدة]),قائمة_الصفوف[فريدة],0),2),0)","v":0},{"$f":"IFERROR(INDEX(قائمة_الصفوف[],MATCH(SUMPRODUCT((قائمة_الصفوف[اليوم]=جدول_الفصل_الدراسي[[#Headers],[الخميس]])*(ROUNDDOWN($B47,10)>=ROUNDDOWN(قائمة_الصفوف[وقت البدء],10))*($B47<=قائمة_الصفوف[وقت الانتهاء]),قائمة_الصفوف[فريدة]),قائمة_الصفوف[فريدة],0),2),0)","v":0},{"$f":"IFERROR(INDEX(قائمة_الصفوف[],MATCH(SUMPRODUCT((قائمة_الصفوف[اليوم]=جدول_الفصل_الدراسي[[#Headers],[الجمعة]])*(ROUNDDOWN($B47,10)>=ROUNDDOWN(قائمة_الصفوف[وقت البدء],10))*($B47<=قائمة_الصفوف[وقت الانتهاء]),قائمة_الصفوف[فريدة]),قائمة_الصفوف[فريدة],0),2),0)","v":0},{"$f":"IFERROR(INDEX(قائمة_الصفوف[],MATCH(SUMPRODUCT((قائمة_الصفوف[اليوم]=جدول_الفصل_الدراسي[[#Headers],[السبت]])*(ROUNDDOWN($B47,10)>=ROUNDDOWN(قائمة_الصفوف[وقت البدء],10))*($B47<=قائمة_الصفوف[وقت الانتهاء]),قائمة_الصفوف[فريدة]),قائمة_الصفوف[فريدة],0),2),0)","v":0}]
[null,"19:00:00",{"$f":"IFERROR(INDEX(قائمة_الصفوف[],MATCH(SUMPRODUCT((قائمة_الصفوف[اليوم]=جدول_الفصل_الدراسي[[#Headers],[الأحد]])*(ROUNDDOWN($B48,10)>=ROUNDDOWN(قائمة_الصفوف[وقت البدء],10))*($B48<=قائمة_الصفوف[وقت الانتهاء]),قائمة_الصفوف[فريدة]),قائمة_الصفوف[فريدة],0),2),0)","v":0},{"$f":"IFERROR(INDEX(قائمة_الصفوف[],MATCH(SUMPRODUCT((قائمة_الصفوف[اليوم]=جدول_الفصل_الدراسي[[#Headers],[الاثنين]])*(ROUNDDOWN($B48,10)>=ROUNDDOWN(قائمة_الصفوف[وقت البدء],10))*($B48<=قائمة_الصفوف[وقت الانتهاء]),قائمة_الصفوف[فريدة]),قائمة_الصفوف[فريدة],0),2),0)","v":0},{"$f":"IFERROR(INDEX(قائمة_الصفوف[],MATCH(SUMPRODUCT((قائمة_الصفوف[اليوم]=جدول_الفصل_الدراسي[[#Headers],[الثلاثاء]])*(ROUNDDOWN($B48,10)>=ROUNDDOWN(قائمة_الصفوف[وقت البدء],10))*($B48<=قائمة_الصفوف[وقت الانتهاء]),قائمة_الصفوف[فريدة]),قائمة_الصفوف[فريدة],0),2),0)","v":0},{"$f":"IFERROR(INDEX(قائمة_الصفوف[],MATCH(SUMPRODUCT((قائمة_الصفوف[اليوم]=جدول_الفصل_الدراسي[[#Headers],[الأربعاء]])*(ROUNDDOWN($B48,10)>=ROUNDDOWN(قائمة_الصفوف[وقت البدء],10))*($B48<=قائمة_الصفوف[وقت الانتهاء]),قائمة_الصفوف[فريدة]),قائمة_الصفوف[فريدة],0),2),0)","v":0},{"$f":"IFERROR(INDEX(قائمة_الصفوف[],MATCH(SUMPRODUCT((قائمة_الصفوف[اليوم]=جدول_الفصل_الدراسي[[#Headers],[الخميس]])*(ROUNDDOWN($B48,10)>=ROUNDDOWN(قائمة_الصفوف[وقت البدء],10))*($B48<=قائمة_الصفوف[وقت الانتهاء]),قائمة_الصفوف[فريدة]),قائمة_الصفوف[فريدة],0),2),0)","v":0},{"$f":"IFERROR(INDEX(قائمة_الصفوف[],MATCH(SUMPRODUCT((قائمة_الصفوف[اليوم]=جدول_الفصل_الدراسي[[#Headers],[الجمعة]])*(ROUNDDOWN($B48,10)>=ROUNDDOWN(قائمة_الصفوف[وقت البدء],10))*($B48<=قائمة_الصفوف[وقت الانتهاء]),قائمة_الصفوف[فريدة]),قائمة_الصفوف[فريدة],0),2),0)","v":0},{"$f":"IFERROR(INDEX(قائمة_الصفوف[],MATCH(SUMPRODUCT((قائمة_الصفوف[اليوم]=جدول_الفصل_الدراسي[[#Headers],[السبت]])*(ROUNDDOWN($B48,10)>=ROUNDDOWN(قائمة_الصفوف[وقت البدء],10))*($B48<=قائمة_الصفوف[وقت الانتهاء]),قائمة_الصفوف[فريدة]),قائمة_الصفوف[فريدة],0),2),0)","v":0}]
[null,"19:15:00",{"$f":"IFERROR(INDEX(قائمة_الصفوف[],MATCH(SUMPRODUCT((قائمة_الصفوف[اليوم]=جدول_الفصل_الدراسي[[#Headers],[الأحد]])*(ROUNDDOWN($B49,10)>=ROUNDDOWN(قائمة_الصفوف[وقت البدء],10))*($B49<=قائمة_الصفوف[وقت الانتهاء]),قائمة_الصفوف[فريدة]),قائمة_الصفوف[فريدة],0),2),0)","v":0},{"$f":"IFERROR(INDEX(قائمة_الصفوف[],MATCH(SUMPRODUCT((قائمة_الصفوف[اليوم]=جدول_الفصل_الدراسي[[#Headers],[الاثنين]])*(ROUNDDOWN($B49,10)>=ROUNDDOWN(قائمة_الصفوف[وقت البدء],10))*($B49<=قائمة_الصفوف[وقت الانتهاء]),قائمة_الصفوف[فريدة]),قائمة_الصفوف[فريدة],0),2),0)","v":0},{"$f":"IFERROR(INDEX(قائمة_الصفوف[],MATCH(SUMPRODUCT((قائمة_الصفوف[اليوم]=جدول_الفصل_الدراسي[[#Headers],[الثلاثاء]])*(ROUNDDOWN($B49,10)>=ROUNDDOWN(قائمة_الصفوف[وقت البدء],10))*($B49<=قائمة_الصفوف[وقت الانتهاء]),قائمة_الصفوف[فريدة]),قائمة_الصفوف[فريدة],0),2),0)","v":0},{"$f":"IFERROR(INDEX(قائمة_الصفوف[],MATCH(SUMPRODUCT((قائمة_الصفوف[اليوم]=جدول_الفصل_الدراسي[[#Headers],[الأربعاء]])*(ROUNDDOWN($B49,10)>=ROUNDDOWN(قائمة_الصفوف[وقت البدء],10))*($B49<=قائمة_الصفوف[وقت الانتهاء]),قائمة_الصفوف[فريدة]),قائمة_الصفوف[فريدة],0),2),0)","v":0},{"$f":"IFERROR(INDEX(قائمة_الصفوف[],MATCH(SUMPRODUCT((قائمة_الصفوف[اليوم]=جدول_الفصل_الدراسي[[#Headers],[الخميس]])*(ROUNDDOWN($B49,10)>=ROUNDDOWN(قائمة_الصفوف[وقت البدء],10))*($B49<=قائمة_الصفوف[وقت الانتهاء]),قائمة_الصفوف[فريدة]),قائمة_الصفوف[فريدة],0),2),0)","v":0},{"$f":"IFERROR(INDEX(قائمة_الصفوف[],MATCH(SUMPRODUCT((قائمة_الصفوف[اليوم]=جدول_الفصل_الدراسي[[#Headers],[الجمعة]])*(ROUNDDOWN($B49,10)>=ROUNDDOWN(قائمة_الصفوف[وقت البدء],10))*($B49<=قائمة_الصفوف[وقت الانتهاء]),قائمة_الصفوف[فريدة]),قائمة_الصفوف[فريدة],0),2),0)","v":0},{"$f":"IFERROR(INDEX(قائمة_الصفوف[],MATCH(SUMPRODUCT((قائمة_الصفوف[اليوم]=جدول_الفصل_الدراسي[[#Headers],[السبت]])*(ROUNDDOWN($B49,10)>=ROUNDDOWN(قائمة_الصفوف[وقت البدء],10))*($B49<=قائمة_الصفوف[وقت الانتهاء]),قائمة_الصفوف[فريدة]),قائمة_الصفوف[فريدة],0),2),0)","v":0}]
[null,"19:30:00",{"$f":"IFERROR(INDEX(قائمة_الصفوف[],MATCH(SUMPRODUCT((قائمة_الصفوف[اليوم]=جدول_الفصل_الدراسي[[#Headers],[الأحد]])*(ROUNDDOWN($B50,10)>=ROUNDDOWN(قائمة_الصفوف[وقت البدء],10))*($B50<=قائمة_الصفوف[وقت الانتهاء]),قائمة_الصفوف[فريدة]),قائمة_الصفوف[فريدة],0),2),0)","v":0},{"$f":"IFERROR(INDEX(قائمة_الصفوف[],MATCH(SUMPRODUCT((قائمة_الصفوف[اليوم]=جدول_الفصل_الدراسي[[#Headers],[الاثنين]])*(ROUNDDOWN($B50,10)>=ROUNDDOWN(قائمة_الصفوف[وقت البدء],10))*($B50<=قائمة_الصفوف[وقت الانتهاء]),قائمة_الصفوف[فريدة]),قائمة_الصفوف[فريدة],0),2),0)","v":0},{"$f":"IFERROR(INDEX(قائمة_الصفوف[],MATCH(SUMPRODUCT((قائمة_الصفوف[اليوم]=جدول_الفصل_الدراسي[[#Headers],[الثلاثاء]])*(ROUNDDOWN($B50,10)>=ROUNDDOWN(قائمة_الصفوف[وقت البدء],10))*($B50<=قائمة_الصفوف[وقت الانتهاء]),قائمة_الصفوف[فريدة]),قائمة_الصفوف[فريدة],0),2),0)","v":0},{"$f":"IFERROR(INDEX(قائمة_الصفوف[],MATCH(SUMPRODUCT((قائمة_الصفوف[اليوم]=جدول_الفصل_الدراسي[[#Headers],[الأربعاء]])*(ROUNDDOWN($B50,10)>=ROUNDDOWN(قائمة_الصفوف[وقت البدء],10))*($B50<=قائمة_الصفوف[وقت الانتهاء]),قائمة_الصفوف[فريدة]),قائمة_الصفوف[فريدة],0),2),0)","v":0},{"$f":"IFERROR(INDEX(قائمة_الصفوف[],MATCH(SUMPRODUCT((قائمة_الصفوف[اليوم]=جدول_الفصل_الدراسي[[#Headers],[الخميس]])*(ROUNDDOWN($B50,10)>=ROUNDDOWN(قائمة_الصفوف[وقت البدء],10))*($B50<=قائمة_الصفوف[وقت الانتهاء]),قائمة_الصفوف[فريدة]),قائمة_الصفوف[فريدة],0),2),0)","v":0},{"$f":"IFERROR(INDEX(قائمة_الصفوف[],MATCH(SUMPRODUCT((قائمة_الصفوف[اليوم]=جدول_الفصل_الدراسي[[#Headers],[الجمعة]])*(ROUNDDOWN($B50,10)>=ROUNDDOWN(قائمة_الصفوف[وقت البدء],10))*($B50<=قائمة_الصفوف[وقت الانتهاء]),قائمة_الصفوف[فريدة]),قائمة_الصفوف[فريدة],0),2),0)","v":0},{"$f":"IFERROR(INDEX(قائمة_الصفوف[],MATCH(SUMPRODUCT((قائمة_الصفوف[اليوم]=جدول_الفصل_الدراسي[[#Headers],[السبت]])*(ROUNDDOWN($B50,10)>=ROUNDDOWN(قائمة_الصفوف[وقت البدء],10))*($B50<=قائمة_الصفوف[وقت الانتهاء]),قائمة_الصفوف[فريدة]),قائمة_الصفوف[فريدة],0),2),0)","v":0}]
[null,"19:45:00",{"$f":"IFERROR(INDEX(قائمة_الصفوف[],MATCH(SUMPRODUCT((قائمة_الصفوف[اليوم]=جدول_الفصل_الدراسي[[#Headers],[الأحد]])*(ROUNDDOWN($B51,10)>=ROUNDDOWN(قائمة_الصفوف[وقت البدء],10))*($B51<=قائمة_الصفوف[وقت الانتهاء]),قائمة_الصفوف[فريدة]),قائمة_الصفوف[فريدة],0),2),0)","v":0},{"$f":"IFERROR(INDEX(قائمة_الصفوف[],MATCH(SUMPRODUCT((قائمة_الصفوف[اليوم]=جدول_الفصل_الدراسي[[#Headers],[الاثنين]])*(ROUNDDOWN($B51,10)>=ROUNDDOWN(قائمة_الصفوف[وقت البدء],10))*($B51<=قائمة_الصفوف[وقت الانتهاء]),قائمة_الصفوف[فريدة]),قائمة_الصفوف[فريدة],0),2),0)","v":0},{"$f":"IFERROR(INDEX(قائمة_الصفوف[],MATCH(SUMPRODUCT((قائمة_الصفوف[اليوم]=جدول_الفصل_الدراسي[[#Headers],[الثلاثاء]])*(ROUNDDOWN($B51,10)>=ROUNDDOWN(قائمة_الصفوف[وقت البدء],10))*($B51<=قائمة_الصفوف[وقت الانتهاء]),قائمة_الصفوف[فريدة]),قائمة_الصفوف[فريدة],0),2),0)","v":0},{"$f":"IFERROR(INDEX(قائمة_الصفوف[],MATCH(SUMPRODUCT((قائمة_الصفوف[اليوم]=جدول_الفصل_الدراسي[[#Headers],[الأربعاء]])*(ROUNDDOWN($B51,10)>=ROUNDDOWN(قائمة_الصفوف[وقت البدء],10))*($B51<=قائمة_الصفوف[وقت الانتهاء]),قائمة_الصفوف[فريدة]),قائمة_الصفوف[فريدة],0),2),0)","v":0},{"$f":"IFERROR(INDEX(قائمة_الصفوف[],MATCH(SUMPRODUCT((قائمة_الصفوف[اليوم]=جدول_الفصل_الدراسي[[#Headers],[الخميس]])*(ROUNDDOWN($B51,10)>=ROUNDDOWN(قائمة_الصفوف[وقت البدء],10))*($B51<=قائمة_الصفوف[وقت الانتهاء]),قائمة_الصفوف[فريدة]),قائمة_الصفوف[فريدة],0),2),0)","v":0},{"$f":"IFERROR(INDEX(قائمة_الصفوف[],MATCH(SUMPRODUCT((قائمة_الصفوف[اليوم]=جدول_الفصل_الدراسي[[#Headers],[الجمعة]])*(ROUNDDOWN($B51,10)>=ROUNDDOWN(قائمة_الصفوف[وقت البدء],10))*($B51<=قائمة_الصفوف[وقت الانتهاء]),قائمة_الصفوف[فريدة]),قائمة_الصفوف[فريدة],0),2),0)","v":0},{"$f":"IFERROR(INDEX(قائمة_الصفوف[],MATCH(SUMPRODUCT((قائمة_الصفوف[اليوم]=جدول_الفصل_الدراسي[[#Headers],[السبت]])*(ROUNDDOWN($B51,10)>=ROUNDDOWN(قائمة_الصفوف[وقت البدء],10))*($B51<=قائمة_الصفوف[وقت الانتهاء]),قائمة_الصفوف[فريدة]),قائمة_الصفوف[فريدة],0),2),0)","v":0}]
[null,"20:00:00",{"$f":"IFERROR(INDEX(قائمة_الصفوف[],MATCH(SUMPRODUCT((قائمة_الصفوف[اليوم]=جدول_الفصل_الدراسي[[#Headers],[الأحد]])*(ROUNDDOWN($B52,10)>=ROUNDDOWN(قائمة_الصفوف[وقت البدء],10))*($B52<=قائمة_الصفوف[وقت الانتهاء]),قائمة_الصفوف[فريدة]),قائمة_الصفوف[فريدة],0),2),0)","v":0},{"$f":"IFERROR(INDEX(قائمة_الصفوف[],MATCH(SUMPRODUCT((قائمة_الصفوف[اليوم]=جدول_الفصل_الدراسي[[#Headers],[الاثنين]])*(ROUNDDOWN($B52,10)>=ROUNDDOWN(قائمة_الصفوف[وقت البدء],10))*($B52<=قائمة_الصفوف[وقت الانتهاء]),قائمة_الصفوف[فريدة]),قائمة_الصفوف[فريدة],0),2),0)","v":0},{"$f":"IFERROR(INDEX(قائمة_الصفوف[],MATCH(SUMPRODUCT((قائمة_الصفوف[اليوم]=جدول_الفصل_الدراسي[[#Headers],[الثلاثاء]])*(ROUNDDOWN($B52,10)>=ROUNDDOWN(قائمة_الصفوف[وقت البدء],10))*($B52<=قائمة_الصفوف[وقت الانتهاء]),قائمة_الصفوف[فريدة]),قائمة_الصفوف[فريدة],0),2),0)","v":0},{"$f":"IFERROR(INDEX(قائمة_الصفوف[],MATCH(SUMPRODUCT((قائمة_الصفوف[اليوم]=جدول_الفصل_الدراسي[[#Headers],[الأربعاء]])*(ROUNDDOWN($B52,10)>=ROUNDDOWN(قائمة_الصفوف[وقت البدء],10))*($B52<=قائمة_الصفوف[وقت الانتهاء]),قائمة_الصفوف[فريدة]),قائمة_الصفوف[فريدة],0),2),0)","v":0},{"$f":"IFERROR(INDEX(قائمة_الصفوف[],MATCH(SUMPRODUCT((قائمة_الصفوف[اليوم]=جدول_الفصل_الدراسي[[#Headers],[الخميس]])*(ROUNDDOWN($B52,10)>=ROUNDDOWN(قائمة_الصفوف[وقت البدء],10))*($B52<=قائمة_الصفوف[وقت الانتهاء]),قائمة_الصفوف[فريدة]),قائمة_الصفوف[فريدة],0),2),0)","v":0},{"$f":"IFERROR(INDEX(قائمة_الصفوف[],MATCH(SUMPRODUCT((قائمة_الصفوف[اليوم]=جدول_الفصل_الدراسي[[#Headers],[الجمعة]])*(ROUNDDOWN($B52,10)>=ROUNDDOWN(قائمة_الصفوف[وقت البدء],10))*($B52<=قائمة_الصفوف[وقت الانتهاء]),قائمة_الصفوف[فريدة]),قائمة_الصفوف[فريدة],0),2),0)","v":0},{"$f":"IFERROR(INDEX(قائمة_الصفوف[],MATCH(SUMPRODUCT((قائمة_الصفوف[اليوم]=جدول_الفصل_الدراسي[[#Headers],[السبت]])*(ROUNDDOWN($B52,10)>=ROUNDDOWN(قائمة_الصفوف[وقت البدء],10))*($B52<=قائمة_الصفوف[وقت الانتهاء]),قائمة_الصفوف[فريدة]),قائمة_الصفوف[فريدة],0),2),0)","v":0}]
[null,"20:15:00",{"$f":"IFERROR(INDEX(قائمة_الصفوف[],MATCH(SUMPRODUCT((قائمة_الصفوف[اليوم]=جدول_الفصل_الدراسي[[#Headers],[الأحد]])*(ROUNDDOWN($B53,10)>=ROUNDDOWN(قائمة_الصفوف[وقت البدء],10))*($B53<=قائمة_الصفوف[وقت الانتهاء]),قائمة_الصفوف[فريدة]),قائمة_الصفوف[فريدة],0),2),0)","v":0},{"$f":"IFERROR(INDEX(قائمة_الصفوف[],MATCH(SUMPRODUCT((قائمة_الصفوف[اليوم]=جدول_الفصل_الدراسي[[#Headers],[الاثنين]])*(ROUNDDOWN($B53,10)>=ROUNDDOWN(قائمة_الصفوف[وقت البدء],10))*($B53<=قائمة_الصفوف[وقت الانتهاء]),قائمة_الصفوف[فريدة]),قائمة_الصفوف[فريدة],0),2),0)","v":0},{"$f":"IFERROR(INDEX(قائمة_الصفوف[],MATCH(SUMPRODUCT((قائمة_الصفوف[اليوم]=جدول_الفصل_الدراسي[[#Headers],[الثلاثاء]])*(ROUNDDOWN($B53,10)>=ROUNDDOWN(قائمة_الصفوف[وقت البدء],10))*($B53<=قائمة_الصفوف[وقت الانتهاء]),قائمة_الصفوف[فريدة]),قائمة_الصفوف[فريدة],0),2),0)","v":0},{"$f":"IFERROR(INDEX(قائمة_الصفوف[],MATCH(SUMPRODUCT((قائمة_الصفوف[اليوم]=جدول_الفصل_الدراسي[[#Headers],[الأربعاء]])*(ROUNDDOWN($B53,10)>=ROUNDDOWN(قائمة_الصفوف[وقت البدء],10))*($B53<=قائمة_الصفوف[وقت الانتهاء]),قائمة_الصفوف[فريدة]),قائمة_الصفوف[فريدة],0),2),0)","v":0},{"$f":"IFERROR(INDEX(قائمة_الصفوف[],MATCH(SUMPRODUCT((قائمة_الصفوف[اليوم]=جدول_الفصل_الدراسي[[#Headers],[الخميس]])*(ROUNDDOWN($B53,10)>=ROUNDDOWN(قائمة_الصفوف[وقت البدء],10))*($B53<=قائمة_الصفوف[وقت الانتهاء]),قائمة_الصفوف[فريدة]),قائمة_الصفوف[فريدة],0),2),0)","v":0},{"$f":"IFERROR(INDEX(قائمة_الصفوف[],MATCH(SUMPRODUCT((قائمة_الصفوف[اليوم]=جدول_الفصل_الدراسي[[#Headers],[الجمعة]])*(ROUNDDOWN($B53,10)>=ROUNDDOWN(قائمة_الصفوف[وقت البدء],10))*($B53<=قائمة_الصفوف[وقت الانتهاء]),قائمة_الصفوف[فريدة]),قائمة_الصفوف[فريدة],0),2),0)","v":0},{"$f":"IFERROR(INDEX(قائمة_الصفوف[],MATCH(SUMPRODUCT((قائمة_الصفوف[اليوم]=جدول_الفصل_الدراسي[[#Headers],[السبت]])*(ROUNDDOWN($B53,10)>=ROUNDDOWN(قائمة_الصفوف[وقت البدء],10))*($B53<=قائمة_الصفوف[وقت الانتهاء]),قائمة_الصفوف[فريدة]),قائمة_الصفوف[فريدة],0),2),0)","v":0}]
[null,"20:30:00",{"$f":"IFERROR(INDEX(قائمة_الصفوف[],MATCH(SUMPRODUCT((قائمة_الصفوف[اليوم]=جدول_الفصل_الدراسي[[#Headers],[الأحد]])*(ROUNDDOWN($B54,10)>=ROUNDDOWN(قائمة_الصفوف[وقت البدء],10))*($B54<=قائمة_الصفوف[وقت الانتهاء]),قائمة_الصفوف[فريدة]),قائمة_الصفوف[فريدة],0),2),0)","v":0},{"$f":"IFERROR(INDEX(قائمة_الصفوف[],MATCH(SUMPRODUCT((قائمة_الصفوف[اليوم]=جدول_الفصل_الدراسي[[#Headers],[الاثنين]])*(ROUNDDOWN($B54,10)>=ROUNDDOWN(قائمة_الصفوف[وقت البدء],10))*($B54<=قائمة_الصفوف[وقت الانتهاء]),قائمة_الصفوف[فريدة]),قائمة_الصفوف[فريدة],0),2),0)","v":0},{"$f":"IFERROR(INDEX(قائمة_الصفوف[],MATCH(SUMPRODUCT((قائمة_الصفوف[اليوم]=جدول_الفصل_الدراسي[[#Headers],[الثلاثاء]])*(ROUNDDOWN($B54,10)>=ROUNDDOWN(قائمة_الصفوف[وقت البدء],10))*($B54<=قائمة_الصفوف[وقت الانتهاء]),قائمة_الصفوف[فريدة]),قائمة_الصفوف[فريدة],0),2),0)","v":0},{"$f":"IFERROR(INDEX(قائمة_الصفوف[],MATCH(SUMPRODUCT((قائمة_الصفوف[اليوم]=جدول_الفصل_الدراسي[[#Headers],[الأربعاء]])*(ROUNDDOWN($B54,10)>=ROUNDDOWN(قائمة_الصفوف[وقت البدء],10))*($B54<=قائمة_الصفوف[وقت الانتهاء]),قائمة_الصفوف[فريدة]),قائمة_الصفوف[فريدة],0),2),0)","v":0},{"$f":"IFERROR(INDEX(قائمة_الصفوف[],MATCH(SUMPRODUCT((قائمة_الصفوف[اليوم]=جدول_الفصل_الدراسي[[#Headers],[الخميس]])*(ROUNDDOWN($B54,10)>=ROUNDDOWN(قائمة_الصفوف[وقت البدء],10))*($B54<=قائمة_الصفوف[وقت الانتهاء]),قائمة_الصفوف[فريدة]),قائمة_الصفوف[فريدة],0),2),0)","v":0},{"$f":"IFERROR(INDEX(قائمة_الصفوف[],MATCH(SUMPRODUCT((قائمة_الصفوف[اليوم]=جدول_الفصل_الدراسي[[#Headers],[الجمعة]])*(ROUNDDOWN($B54,10)>=ROUNDDOWN(قائمة_الصفوف[وقت البدء],10))*($B54<=قائمة_الصفوف[وقت الانتهاء]),قائمة_الصفوف[فريدة]),قائمة_الصفوف[فريدة],0),2),0)","v":0},{"$f":"IFERROR(INDEX(قائمة_الصفوف[],MATCH(SUMPRODUCT((قائمة_الصفوف[اليوم]=جدول_الفصل_الدراسي[[#Headers],[السبت]])*(ROUNDDOWN($B54,10)>=ROUNDDOWN(قائمة_الصفوف[وقت البدء],10))*($B54<=قائمة_الصفوف[وقت الانتهاء]),قائمة_الصفوف[فريدة]),قائمة_الصفوف[فريدة],0),2),0)","v":0}]
[null,"20:45:00",{"$f":"IFERROR(INDEX(قائمة_الصفوف[],MATCH(SUMPRODUCT((قائمة_الصفوف[اليوم]=جدول_الفصل_الدراسي[[#Headers],[الأحد]])*(ROUNDDOWN($B55,10)>=ROUNDDOWN(قائمة_الصفوف[وقت البدء],10))*($B55<=قائمة_الصفوف[وقت الانتهاء]),قائمة_الصفوف[فريدة]),قائمة_الصفوف[فريدة],0),2),0)","v":0},{"$f":"IFERROR(INDEX(قائمة_الصفوف[],MATCH(SUMPRODUCT((قائمة_الصفوف[اليوم]=جدول_الفصل_الدراسي[[#Headers],[الاثنين]])*(ROUNDDOWN($B55,10)>=ROUNDDOWN(قائمة_الصفوف[وقت البدء],10))*($B55<=قائمة_الصفوف[وقت الانتهاء]),قائمة_الصفوف[فريدة]),قائمة_الصفوف[فريدة],0),2),0)","v":0},{"$f":"IFERROR(INDEX(قائمة_الصفوف[],MATCH(SUMPRODUCT((قائمة_الصفوف[اليوم]=جدول_الفصل_الدراسي[[#Headers],[الثلاثاء]])*(ROUNDDOWN($B55,10)>=ROUNDDOWN(قائمة_الصفوف[وقت البدء],10))*($B55<=قائمة_الصفوف[وقت الانتهاء]),قائمة_الصفوف[فريدة]),قائمة_الصفوف[فريدة],0),2),0)","v":0},{"$f":"IFERROR(INDEX(قائمة_الصفوف[],MATCH(SUMPRODUCT((قائمة_الصفوف[اليوم]=جدول_الفصل_الدراسي[[#Headers],[الأربعاء]])*(ROUNDDOWN($B55,10)>=ROUNDDOWN(قائمة_الصفوف[وقت البدء],10))*($B55<=قائمة_الصفوف[وقت الانتهاء]),قائمة_الصفوف[فريدة]),قائمة_الصفوف[فريدة],0),2),0)","v":0},{"$f":"IFERROR(INDEX(قائمة_الصفوف[],MATCH(SUMPRODUCT((قائمة_الصفوف[اليوم]=جدول_الفصل_الدراسي[[#Headers],[الخميس]])*(ROUNDDOWN($B55,10)>=ROUNDDOWN(قائمة_الصفوف[وقت البدء],10))*($B55<=قائمة_الصفوف[وقت الانتهاء]),قائمة_الصفوف[فريدة]),قائمة_الصفوف[فريدة],0),2),0)","v":0},{"$f":"IFERROR(INDEX(قائمة_الصفوف[],MATCH(SUMPRODUCT((قائمة_الصفوف[اليوم]=جدول_الفصل_الدراسي[[#Headers],[الجمعة]])*(ROUNDDOWN($B55,10)>=ROUNDDOWN(قائمة_الصفوف[وقت البدء],10))*($B55<=قائمة_الصفوف[وقت الانتهاء]),قائمة_الصفوف[فريدة]),قائمة_الصفوف[فريدة],0),2),0)","v":0},{"$f":"IFERROR(INDEX(قائمة_الصفوف[],MATCH(SUMPRODUCT((قائمة_الصفوف[اليوم]=جدول_الفصل_الدراسي[[#Headers],[السبت]])*(ROUNDDOWN($B55,10)>=ROUNDDOWN(قائمة_الصفوف[وقت البدء],10))*($B55<=قائمة_الصفوف[وقت الانتهاء]),قائمة_الصفوف[فريدة]),قائمة_الصفوف[فريدة],0),2),0)","v":0}]
[null,"21:00:00",{"$f":"IFERROR(INDEX(قائمة_الصفوف[],MATCH(SUMPRODUCT((قائمة_الصفوف[اليوم]=جدول_الفصل_الدراسي[[#Headers],[الأحد]])*(ROUNDDOWN($B56,10)>=ROUNDDOWN(قائمة_الصفوف[وقت البدء],10))*($B56<=قائمة_الصفوف[وقت الانتهاء]),قائمة_الصفوف[فريدة]),قائمة_الصفوف[فريدة],0),2),0)","v":0},{"$f":"IFERROR(INDEX(قائمة_الصفوف[],MATCH(SUMPRODUCT((قائمة_الصفوف[اليوم]=جدول_الفصل_الدراسي[[#Headers],[الاثنين]])*(ROUNDDOWN($B56,10)>=ROUNDDOWN(قائمة_الصفوف[وقت البدء],10))*($B56<=قائمة_الصفوف[وقت الانتهاء]),قائمة_الصفوف[فريدة]),قائمة_الصفوف[فريدة],0),2),0)","v":0},{"$f":"IFERROR(INDEX(قائمة_الصفوف[],MATCH(SUMPRODUCT((قائمة_الصفوف[اليوم]=جدول_الفصل_الدراسي[[#Headers],[الثلاثاء]])*(ROUNDDOWN($B56,10)>=ROUNDDOWN(قائمة_الصفوف[وقت البدء],10))*($B56<=قائمة_الصفوف[وقت الانتهاء]),قائمة_الصفوف[فريدة]),قائمة_الصفوف[فريدة],0),2),0)","v":0},{"$f":"IFERROR(INDEX(قائمة_الصفوف[],MATCH(SUMPRODUCT((قائمة_الصفوف[اليوم]=جدول_الفصل_الدراسي[[#Headers],[الأربعاء]])*(ROUNDDOWN($B56,10)>=ROUNDDOWN(قائمة_الصفوف[وقت البدء],10))*($B56<=قائمة_الصفوف[وقت الانتهاء]),قائمة_الصفوف[فريدة]),قائمة_الصفوف[فريدة],0),2),0)","v":0},{"$f":"IFERROR(INDEX(قائمة_الصفوف[],MATCH(SUMPRODUCT((قائمة_الصفوف[اليوم]=جدول_الفصل_الدراسي[[#Headers],[الخميس]])*(ROUNDDOWN($B56,10)>=ROUNDDOWN(قائمة_الصفوف[وقت البدء],10))*($B56<=قائمة_الصفوف[وقت الانتهاء]),قائمة_الصفوف[فريدة]),قائمة_الصفوف[فريدة],0),2),0)","v":0},{"$f":"IFERROR(INDEX(قائمة_الصفوف[],MATCH(SUMPRODUCT((قائمة_الصفوف[اليوم]=جدول_الفصل_الدراسي[[#Headers],[الجمعة]])*(ROUNDDOWN($B56,10)>=ROUNDDOWN(قائمة_الصفوف[وقت البدء],10))*($B56<=قائمة_الصفوف[وقت الانتهاء]),قائمة_الصفوف[فريدة]),قائمة_الصفوف[فريدة],0),2),0)","v":0},{"$f":"IFERROR(INDEX(قائمة_الصفوف[],MATCH(SUMPRODUCT((قائمة_الصفوف[اليوم]=جدول_الفصل_الدراسي[[#Headers],[السبت]])*(ROUNDDOWN($B56,10)>=ROUNDDOWN(قائمة_الصفوف[وقت البدء],10))*($B56<=قائمة_الصفوف[وقت الانتهاء]),قائمة_الصفوف[فريدة]),قائمة_الصفوف[فريدة],0),2),0)","v":0}]

{"sheet":"قائمة الصفوف","index":1,"n_rows":10,"n_cols":8,"rows_kept":10,"merged":[[0,1,0,5],[0,6,0,7]]}
[null,"قائمة الصفوف",{"$nulls":4},"جدول الفصل الدراسي"]
[null,"الصف","المعرّف","اليوم","الموقع","وقت البدء","وقت الانتهاء","فريدة"]
[null,"الكتابة التقنية","الكتابة-121","الاثنين","المبنى أ","13:00:00","14:00:00",{"$f":"ROW()-ROW(قائمة_الصفوف[[#Headers],[فريدة]])","v":1}]
[null,"الكتابة التقنية","الكتابة-121","الأربعاء","المبنى أ","13:00:00","14:00:00",{"$f":"ROW()-ROW(قائمة_الصفوف[[#Headers],[فريدة]])","v":2}]
[null,"الخطابة العامة","خطابة عامة-111","الاثنين","المبنى ب","16:00:00","17:00:00",{"$f":"ROW()-ROW(قائمة_الصفوف[[#Headers],[فريدة]])","v":3}]
[null,"الصحة واللياقة البدنية","الصحة واللياقة البدنية-295","الثلاثاء","المبنى ب","11:00:00","12:00:00",{"$f":"ROW()-ROW(قائمة_الصفوف[[#Headers],[فريدة]])","v":4}]
[null,"الصحة واللياقة البدنية","الصحة واللياقة البدنية-295","الخميس","المبنى ب","11:00:00","12:00:00",{"$f":"ROW()-ROW(قائمة_الصفوف[[#Headers],[فريدة]])","v":5}]
[null,"الجبر","رياضيات-113","الاثنين","المبنى ج","08:10:00","09:15:00",{"$f":"ROW()-ROW(قائمة_الصفوف[[#Headers],[فريدة]])","v":6}]
[null,"الجبر","رياضيات-113","الأربعاء","المبنى ج","08:10:00","09:15:00",{"$f":"ROW()-ROW(قائمة_الصفوف[[#Headers],[فريدة]])","v":7}]
[null,"الجبر","رياضيات-113","الجمعة","المبنى ج","08:10:00","09:15:00",{"$f":"ROW()-ROW(قائمة_الصفوف[[#Headers],[فريدة]])","v":8}]